{"text_format":"1","workbook":"xlsx","n_sheets":12,"sheets":["start","Aanvraagformulier","Omgeving (1)","Omgeving (2)","Omgeving (3)","Omgeving (4)","Omgeving (5)","Omgeving (6)","Omgeving (7)","Omgeving (8)","Omgeving (9)","Omgeving (10)"],"not_rendered":{"charts":0,"images":8,"macros":1,"external_links":0,"defined_names":23,"comments":0,"pivot_tables":0},"unopened":[],"bounds":{"document_bytes":16777216,"sheet_cells":100000,"rows_first":2000,"rows_last":500,"rows_between":2000,"halvings":0,"cell_chars":16384,"cell_head_chars":4096},"cells_cut":0,"cells_raw":0,"read":"whole","date_system":"1900"}

{"sheet":"start","index":0,"n_rows":36,"n_cols":27,"rows_kept":36,"cut":false,"hidden":false,"merged":[[5,1,7,9],[19,1,29,5],[19,22,22,30],[19,11,21,19]]}
[]
[null,"Welkom "]
[]
[]
[]
[null,"Gelieve Macro's te activeren om de aanvraag te initiëren"]
[]
[]
[]
[]
[]
[]
[]
[null,"Onderhavig aanvraagformulier maakt gebruik van Excel Macro's."]
[null,"Indien bovenstaande melding niet wordt weergegeven, kan het zijn dat Macros zonder notificatie worden gedeactiveerd."]
[null,"Volgende 3 stappen dienen te worden doorlopen om deze instelling manueel te wijzigen."]
[]
[]
[]
[null,"Om Macro's in Office-bestanden in of uit te schakelen dient u bovenaan uw scherm op \"File\" (Bestand) te klikken en vervolgens naar het menu \"Options\" (Instellingen) te navigeren.",null,null,null,null,null,null,null,null,null,"Vervolgens activeert u in het menu 'Trust Center' > \"Trust Center Settings…\"",null,null,null,null,null,null,null,null,null,null,"Vervolgens dient u bij \"Macro Settings\" (Instellingen voor macro's) de selectie te maken om op \"Disable all maros with notification\" ( Alle macro's uitschakelen, met melding)"]
[]
[]
[]
[]
[]
[]
[]
[]
[]
[]
[]
[]
[]
[]
[]
[null,null,null,null,null,null,null,null,null,null,null,null,null,null,null,null,null,null,null,null,null,null,null,null,null,null,"Of "]

{"sheet":"Aanvraagformulier","index":1,"n_rows":74,"n_cols":23,"rows_kept":74,"cut":false,"hidden":true,"merged":[[67,18,69,18],[67,19,69,19],[65,7,65,15],[53,18,53,19],[55,18,56,18],[55,19,56,19],[57,18,59,18],[57,19,59,19],[60,18,63,18],[60,19,63,19],[64,18,66,18],[64,19,66,19],[54,4,54,15],[58,7,59,15],[55,7,55,15],[69,8,69,10],[52,18,52,19],[8,21,8,22],[3,7,3,19],[13,7,13,15],[36,6,36,8],[28,9,28,11],[5,7,5,8],[6,1,6,19],[39,7,40,18],[24,13,26,13],[24,14,26,14],[24,9,26,11],[23,4,23,16],[27,9,27,11],[11,4,11,5],[12,4,12,5],[33,9,33,11],[11,7,11,15],[12,7,12,15],[8,18,8,19],[20,4,20,5],[21,4,21,5],[19,7,19,15],[20,7,20,15],[14,4,14,5],[16,4,16,5],[17,4,17,5],[18,4,18,5],[19,4,19,5],[15,7,15,15],[15,4,15,5],[16,7,16,15],[24,15,26,15],[18,7,18,15],[14,7,14,15],[21,7,21,15],[24,5,26,5],[17,7,17,15],[2,24,6,29],[5,15,5,16],[49,7,49,18],[50,7,50,18],[22,7,22,15],[48,7,48,18],[44,7,44,18],[45,7,45,18],[46,7,46,18],[30,9,30,11],[31,9,31,11],[32,9,32,11],[34,9,34,11],[35,9,35,11],[36,9,36,11],[29,9,29,11],[67,7,68,15],[22,4,22,5],[32,6,32,8],[33,6,33,8],[34,6,34,8],[35,6,35,8],[11,6,22,6],[13,4,13,5],[24,6,26,8],[27,6,27,8],[28,6,28,8],[29,6,29,8],[24,12,26,12],[51,7,51,18],[30,6,30,8],[31,6,31,8]]}
[]
[]
[null,null,2]
[null,null,null,null,null,null,null,"Aanvraagdocument Subsidie Veilige Schoolomgeving"]
[]
[]
[null,"Verklaring betreffende de verwerking van persoonsgegevens sdf\n\nHet departement Mobiliteit en Openbare Werken verwerkt uw persoonsgegevens uitsluitend voor het vervullen van een wettelijke verplichting, namelijk het toekennen van subsidies voor veilige schoolomgevingen volgens het Besluit Vlaamse Regering houdende de regeling van subsidies aan gemeenten in het kader van veilige schoolomgevingen van 29 maart 2019.  Als u niet wilt dat we uw gegevens verwerken, kunt u dat melden door het  invulformulier in te vullen op onze website. We kunnen u dan mogelijk de dienst die u vraagt, niet verstrekken. U kunt ook altijd via deze weg vragen welke persoonsgegevens we verwerken en u kunt ze laten verbeteren of verwijderen. We vragen dan een bewijs van uw identiteit zodat we uw gegevens niet meedelen aan iemand die er geen recht op heeft.  Als u vragen hebt over de manier waarop we uw gegevens verwerken, kunt u deze stellen via het 'invulformulier op onze website'. Bent u het niet eens met de manier waarop we uw gegevens verwerken, dan kunt u zich wenden tot de bevoegde toezichthoudende autoriteit. Ons beleid op het vlak van gegevensverwerking vindt u op https://departement-mow.vlaanderen.be/nl/privacyverklaring.\n\nGelieve dit ingevulde formulier (én de bijlagen) op te laden via https://mow.vlaanderen.be/schoolomgevingen/. U hoeft het aanvraagdossier niet meer in te dienen via mail.\n"]
[]
[null,"Vul in onderstaande tabel de gevraagde gegevens in, maak waar nodig een keuze uit de aangeboden keuzelijst en vink alle verklaringen aan die op de aanvraag van toepassing zijn.",null,null,null,null,null,null,null,null,null,null,null,null,null,null,null,null,null,null,null,"Validatie \nMOW"]
[null,"0. Identificatie aanvrager en overzicht",null,null,null,null,null,null,null,null,null,null,null,null,null,null,null,null,null,null,"Ratio Legis","Evaluatie","Comment (optioneel)"]
[]
[null,null,null,null,"Gemeente",null,null,"<< Verplicht veld >>"]
[null,null,null,null,"Postcode",null,null,"<< Verplicht veld >>"]
[null,null,null,null,"Datum indiening",null,null,"<< Verplicht veld >>"]
[null,null,null,null,"KBO n°",null,null,"<< Verplicht veld >>"]
[null,null,null,null,"Rekening n° (IBAN)",null,null,"<< Verplicht veld >>"]
[null,null,null,null,"E-mail contactpersoon",null,null,"<< Verplicht veld >>"]
[null,null,null,null,"Telefoon contactpersoon",null,null,"<< Verplicht veld >>"]
[null,null,null,null,"Correspondentieadres\ncontactpersoon",null,null,"<< Verplicht veld >>"]
[null,null,null,null,"Naam contactpersoon",null,null,"<< Verplicht veld >>"]
[null,null,null,null,"Uw referentie",null,null,"<< Verplicht veld >>"]
[null,null,null,null,"Aantal omgevingen (Max. 10)",null,null,1]
[null,null,null,null,"Totaal bedrag project\n(incl. BTW)",null,null,{"$f":"SUM(N28:N37)","v":0}]
[null,null,null,null,"Individuele kerngegevens per omgeving:"]
[null,null,false,null,null,"Omgeving","Naam  omgeving",null,null,"Type \nwerkzaamheden",null,null,"Raming kosten\n (excl. BTW)","Raming kosten\n (incl. BTW)","Detailfiche ","Detailfiche volledig ingevuld?"]
[]
[null,null,true]
[null,null,null,null,null,1,"<< Gelieve de naam van omgeving 1 in te vullen >>",null,null,"<<Maak een keuze>>",null,null,null,null,{"$f":"HYPERLINK(\"#'Omgeving (1)'!A1\",\"Klik hier\")","v":"Klik hier"},null,null,false]
[null,null,null,null,null,2,"<< Gelieve de naam van omgeving 2 in te vullen >>",null,null,"<<Maak een keuze>>",null,null,null,null,{"$f":"HYPERLINK(\"#'Omgeving (2)'!A1\",\"Klik hier\")","v":"Klik hier"},null,null,false]
[null,null,null,null,null,3,"<< Gelieve de naam van omgeving 3 in te vullen >>",null,null,"<<Maak een keuze>>",null,null,null,null,{"$f":"HYPERLINK(\"#'Omgeving (3)'!A1\",\"Klik hier\")","v":"Klik hier"},null,null,false]
[null,null,null,null,null,4,"<< Gelieve de naam van omgeving 4 in te vullen >>",null,null,"<<Maak een keuze>>",null,null,null,null,{"$f":"HYPERLINK(\"#'Omgeving (4)'!A1\",\"Klik hier\")","v":"Klik hier"},null,null,false]
[null,null,null,null,null,5,"<< Gelieve de naam van omgeving 5 in te vullen >>",null,null,"<<Maak een keuze>>",null,null,null,null,{"$f":"HYPERLINK(\"#'Omgeving (5)'!A1\",\"Klik hier\")","v":"Klik hier"},null,null,false]
[null,null,null,null,null,6,"<< Gelieve de naam van omgeving 6 in te vullen >>",null,null,"<<Maak een keuze>>",null,null,null,null,{"$f":"HYPERLINK(\"#'Omgeving (6)'!A1\",\"Klik hier\")","v":"Klik hier"},null,null,false]
[null,null,null,null,null,7,"<< Gelieve de naam van omgeving 7 in te vullen >>",null,null,"<<Maak een keuze>>",null,null,null,null,{"$f":"HYPERLINK(\"#'Project (7)'!A1\",\"Klik hier\")","v":"Klik hier"},null,null,false]
[null,null,null,null,null,8,"<< Gelieve de naam van omgeving 8 in te vullen >>",null,null,"<<Maak een keuze>>",null,null,null,null,{"$f":"HYPERLINK(\"#'Omgeving (8)'!A1\",\"Klik hier\")","v":"Klik hier"},null,null,false]
[null,null,null,null,null,9,"<< Gelieve de naam van omgeving 9 in te vullen >>",null,null,"<<Maak een keuze>>",null,null,null,null,{"$f":"HYPERLINK(\"#'Omgeving (9)'!A1\",\"Klik hier\")","v":"Klik hier"},null,null,false]
[null,null,null,null,null,10,"<< Gelieve de naam van omgeving 10 in te vullen >>",null,null,"<<Maak een keuze>>",null,null,null,null,{"$f":"HYPERLINK(\"#'Omgeving (10)'!A1\",\"Klik hier\")","v":"Klik hier"},null,null,false]
[]
[]
[null,null,false,null,null,null,null,"De gemeente overschrijdt geenszins de ingestelde grens van maximum 1 aanvraag per kalenderjaar voor maximum tien schoolomgevingen op haar grondgebied.",null,null,null,null,null,null,null,null,null,null,null,null,"Art. 6 (1)"]
[]
[null,"1. Bevestiging inzake volledigheid van de aanvraag"]
[]
[]
[null,null,false,null,null,null,null,"De aanvrager bevestigt dat het bovenstaande overzicht volledig en accuraat werd ingevuld.",null,null,null,null,null,null,null,null,null,null,null,null,"Art. 1. §1 1° (1)"]
[null,null,null,null,null,null,null,"EN"]
[null,null,false,null,null,null,null,"De aanvrager bevestigt dat de bijhorende detailfiches werden opgesteld",null,null,null,null,null,null,null,null,null,null,null,null,"Art. 1. §1 1° (1)"]
[]
[null,null,null,false,null,null,null,"i) Overeenkomstig het overzicht"]
[null,null,null,null,null,null,null,"EN/OF"]
[null,null,null,false,null,null,null,"ii) Dat de kruisverwijzingen naar de referentiedocumenten voldoende in detail toelaten de volledigheid van het dossier na te gaan"]
[]
[]
[null,"2. Bevestigingen"]
[]
[null,null,false,null,null,null,null,"De gemeente is aanvrager en opdrachtgever voor ALLE omgevingen.",null,null,null,null,null,null,null,null,null,null,null,null,"Art. 6 juncto art 2 §2 (1)"]
[]
[null,null,false]
[null,null,null,null,null,null,null,"Voor geen enkele van de omgevingen betreft de beoogde subsidie grotere herinrichtingsprojecten, zoals bedoeld in artikel 26/10 en 26/12 van het decreet van 20 maart 2009 betreffende het mobiliteitsbeleid.",null,null,null,null,null,null,null,null,null,null,null,null,"Art. 42 §6 (2)"]
[null,null,null,null,null,null,null,null,null,null,null,null,null,null,null,null,null,null,null,null,"Art. 26/10 juncto 26/12(3) "]
[]
[null,null,false,null,null,null,null,"GEEN van onderstaande kosten werden vervat in de aangifte:",null,null,null,null,null,null,null,null,null,null,null,null,"Art 42 § 6 (2)"]
[null,null,null,null,null,null,null,"i) Kosten voor opmaak van het projectdossier ;"]
[null,null,null,null,null,null,null,"ii) Kosten gerelateerd aan bijkomende studies, onderzoeken of analyses."]
[]
[null,null,false,null,null,null,null," De informatie over de aanvrager, met inbegrip van het rekeningnummer waarop de subsidie moet worden gestort, is correct opgenomen.",null,null,null,null,null,null,null,null,null,null,null,null,"Art. 7  Eerste Lid 1°-5° (1)"]
[]
[null,null,null,null,null,null,null,"Een afschrift van de beslissing (door bevoegde interne orgaan van de gemeente) tot aanvraag van deze subsidie werd bijgevoegd."]
[]
[null,null,true,null,null,null,null,"Bijlage:"]
[]
[]
[]
[null,"Voor de administratie (MOW)",null,null,null,null,null,null,null,null,null,"Voor de aanvrager (Naam + Functie)"]

{"sheet":"Omgeving (1)","index":2,"n_rows":85,"n_cols":23,"rows_kept":85,"cut":false,"hidden":true,"merged":[[75,19,77,19],[75,20,77,20],[30,21,40,21],[24,21,28,21],[34,7,34,17],[31,7,32,17],[43,7,44,17],[27,7,28,17],[36,7,36,18],[37,7,37,18],[14,4,14,6],[15,4,15,6],[16,4,16,6],[17,4,17,6],[2,24,6,29],[5,7,5,8],[6,7,6,8],[6,15,6,16],[1,9,5,19],[7,19,7,20],[13,7,13,16],[7,1,7,18],[11,4,11,16],[13,4,13,6],[13,17,17,17],[78,7,78,18],[14,7,14,16],[15,7,15,16],[16,7,16,16],[17,7,17,16],[65,7,65,18],[67,7,67,18],[68,7,68,18],[69,7,69,18],[45,7,45,18],[46,7,46,18],[70,7,70,15],[24,7,24,18],[47,7,47,18],[38,7,38,18],[74,9,74,10],[19,7,19,17],[73,11,73,14],[74,11,74,14],[73,9,73,10],[39,7,39,18],[51,7,52,16],[58,7,59,16],[54,15,54,17],[54,11,54,14],[55,11,55,14],[56,11,56,14]]}
[]
[null,null,null,null,null,null,null,null,null,{"$f":"\"Individuele Detailfiche - Omgeving \" &H14&_xlfn.UNICHAR(10)& \"('\"&H15&\"')\"","v":"Individuele Detailfiche - Omgeving 1\n('<< Gelieve de naam van omgeving 1 in te vullen >>')"}]
[null,null,2]
[]
[]
[]
[]
[null,"Vul in onderstaande tabel de gevraagde gegevens in, vink alle verklaringen aan die op de aanvraag van toepassing zijn. Toepasselijke bijlages geeft u een (betekenisvolle naam) – vb. raming school ABC. Vermeld deze naam op de voorziene plaatsen in kolom T.  Indien één en dezelfde bijlage de info van meerdere items bundelt, leid ons dan in “kolom  U\" naar het passende paginanummer. Vergeet niet de bijlages samen met het aangevulde aanvraagformulier over te maken.",null,null,null,null,null,null,null,null,null,null,null,null,null,null,null,null,null,"Bijlagen",null,"Validatie \nMOW","Wettelijke \nverwijzing"]
[]
[]
[null,"0. Kostenoverzicht",null,null,null,null,null,null,null,null,null,null,null,null,null,null,null,null,null,"Naam Bijlage","Pagina n°","Evaluatie"]
[null,null,null,null,"Details per omgeving (Automatisch aangevuld op basis van overzicht)"]
[null,null,null,null,null,null,null,null,null,null,null,null,null,null,null,null,null,"link"]
[null,null,null,null,"Omgeving n°",null,null,1,null,null,null,null,null,null,null,null,null,{"$f":"HYPERLINK(\"#'Aanvraagformulier'!G28\",\"Klik hier\")","v":"Klik hier"}]
[null,null,null,null,"Naam omgeving",null,null,{"$f":"VLOOKUP(H$14,Aanvraagformulier!$F$25:$N$37,2,FALSE)","v":"<< Gelieve de naam van omgeving 1 in te vullen >>"}]
[null,null,null,null,"Type \nwerkzaamheden",null,null,{"$f":"VLOOKUP(H$14,Aanvraagformulier!$F$25:$N$37,5,FALSE)","v":"<<Maak een keuze>>"}]
[null,null,null,null,"Raming kosten\n (excl. BTW)",null,null,{"$f":"VLOOKUP(H$14,Aanvraagformulier!$F$25:$N$37,8,FALSE)","v":0}]
[null,null,null,null,"Raming kosten\n (incl. BTW)",null,null,{"$f":"VLOOKUP(H$14,Aanvraagformulier!$F$25:$N$37,9,FALSE)","v":0}]
[]
[null,null,false,null,null,null,null,"De raming van de kosten werd toegevoegd aan het dossier en opgenomen in de bijlage met referentie.",null,null,null,null,null,null,null,null,null,null,null,null,null,null,"Art. 7  Eerste Lid 2° (1)"]
[]
[]
[null,"1. Omschrijving werken",null,null,null,null,null,null,null,null,null,null,null,null,null,null,null,null,null,"Naam Bijlage (optioneel)","Pagina n°"]
[null,null,false]
[null,null,null,null,null,null,null,"Omschrijving werken"]
[null,null,null,null,null,null,null,null,null,null,null,null,null,null,null,null,null,null,null,null,null,null,"Art. 7  Eerste Lid 1° (1)"]
[]
[null,null,false,null,null,null,null,"Optioneel - u kunt een verduidelijkende bijlage toevoegen ter verduidelijking/vervanging van bovenstaand veld."]
[]
[null,"2. Locatie",null,null,null,null,null,null,null,null,null,null,null,null,null,null,null,null,null,"Naam Bijlage","Pagina n°"]
[]
[null,null,false,null,null,null,null,"Een kaart waarop de fysieke locatie van de schooltoegang en de zone van de werken aangeduid is, werd toegevoegd aan het dossier.",null,null,null,null,null,null,null,null,null,null,null,null,null,null,"Art. 1. 4° - art. 2 §1 1° (1) "]
[]
[]
[null,null,false,null,null,null,null,"De schoolomgeving (de zone waarin de werken voorzien zijn) bevindt zich:",null,null,null,null,null,null,null,null,null,null,null,null,null,null,"Art. 1. 4° - art. 2 §1 1° (1) "]
[]
[null,null,null,false,null,null,null,"i) Binnen een straal van 100 meter rond de schooltoegang."]
[]
[null,null,null,false,null,null,null,"ii) Of tot het eerste kruispunt aan weerzijden indien dat verder ligt dan 100 meter."]
[]
[]
[null,"3. Doel en aard"]
[]
[null,null,false,null,null,null,null,"Uitgaven zijn erop gericht de verkeersveiligheid van schoolkinderen te verbeteren. Selecteer (enkel) de relevante uitgave(n):",null,null,null,null,null,null,null,null,null,null,null,null,null,null,"Art. 2. §1 2° (1)"]
[]
[null,null,null,false,null,null,null,"i) Uitgaven voor verkeerssignalisatie.",null,null,null,null,null,null,null,null,null,null,null,null,null,null,"Art. 3 (1)"]
[null,null,null,null,null,null,null,"EN/OF",null,null,null,null,null,null,null,null,null,null,null,null,null,null,"Art. 3 (1)"]
[null,null,null,false,null,null,null,"ii) Uitgaven voor kleinere infrastructurele maatregelen die de verkeersveiligheid in de schoolomgeving verhogen."]
[]
[null,"4. Timing",null,null,null,null,null,null,null,null,null,null,null,null,null,null,null,null,null,"Naam Bijlage","Pagina n°"]
[]
[null,null,false,null,null,null,null,"De (geplande) werken worden uitgevoerd, rekening houdend met een voltooiingsdatum binnen de zes maanden na de dag van beslissing van toekenning. De finale stukken zullen ten laatste 60 dagen na voormelde datum ingediend moeten worden.",null,null,null,null,null,null,null,null,null,null,null,null,null,null,"Art. 2 §3 juncto art. 3 (1)"]
[]
[]
[null,null,null,null,null,null,null,"Voorziene datum aanvang van de werken",null,null,null,null,null,null,null,{"$f":"IF(OR(ISBLANK(L55),ISBLANK(L56)),\"Gelieve beide data in te vullen\",\"\")","v":"Gelieve beide data in te vullen"}]
[null,null,null,null,null,null,null,"Voorziene datum einde van de werken"]
[null,null,null,null,null,null,null,"Duurtijd (kalenderdagen)",null,null,null,{"$f":"IF(OR(ISBLANK(L55),ISBLANK(L56)),\"Gelieve bovenstaande cellen in te vullen\",_xlfn.DAYS(L56,L55))","v":"Gelieve bovenstaande cellen in te vullen"}]
[]
[null,null,null,null,null,null,null,"De werken worden uitgevoerd binnen 6 maanden na de dag van beslissing van toekenning. De finale stukken worden ten laatste 60 dagen na einddatum van de werken ingediend."]
[]
[]
[null,null,true,null,null,null,null,"De planning van de uitvoering van de werken voor de omgeving werd toegevoegd in bijlage met referentie.",null,null,null,null,null,null,null,null,null,null,null,null,null,null,"Art. 7  Eerste Lid 13 (1)"]
[null,null,true]
[null,"5. Informatie domeinbeheerder",null,null,null,null,null,null,null,null,null,null,null,null,null,null,null,null,null,"Naam Bijlage (optioneel)","Pagina n°","Compleet?"]
[]
[null,null,false,null,null,null,null,null,null,null,null,null,null,null,null,null,null,null,null,null,null,null,"Art. 7  Eerste Lid 1°-4° (1)"]
[]
[null,null,null,false]
[null,null,null,false]
[null,null,null,false]
[null,null,2,false,null,null,null,"Het domein waarop de werken worden uitgevoerd, is in het beheer van de gemeente."]
[]
[null,null,null,null,null,null,null,"Indien niet, vul aan:"]
[null,null,null,null,null,null,null,null,null,"Type",null,"Identiteit domeinbeheerder"]
[null,null,null,null,null,null,null,null,null,"Privaat"]
[]
[null,null,null,null,null,null,null,"Het akkoord van de deze domeinbeheerder werd als bijlage toegevoegd aan de dossieraanvraag.",null,null,null,null,null,null,null,null,null,null,null,null,null,null,"Art. 7  Eerste Lid 5° (1)"]
[]
[null,null,true]
[]
[]
[]
[]
[null,"Voor de administratie (MOW)",null,null,null,null,null,null,null,null,null,null,null,null,null,null,"Voor de aanvrager (Naam + Functie)"]
[null,null,null,null,null,null,null,null,null,null,null,"Hide Row"]

{"sheet":"Omgeving (2)","index":3,"n_rows":85,"n_cols":23,"rows_kept":85,"cut":false,"hidden":true,"merged":[[75,19,77,19],[75,20,77,20],[78,7,78,18],[69,7,69,18],[70,7,70,15],[73,9,73,10],[73,11,73,14],[74,9,74,10],[74,11,74,14],[68,7,68,18],[43,7,44,17],[45,7,45,18],[46,7,46,18],[47,7,47,18],[51,7,52,16],[54,11,54,14],[54,15,54,17],[55,11,55,14],[56,11,56,14],[58,7,59,16],[65,7,65,18],[67,7,67,18],[19,7,19,17],[24,7,24,18],[24,21,28,21],[27,7,28,17],[30,21,40,21],[31,7,32,17],[34,7,34,17],[36,7,36,18],[37,7,37,18],[38,7,38,18],[39,7,39,18],[11,4,11,16],[13,4,13,6],[13,7,13,16],[13,17,17,17],[14,4,14,6],[14,7,14,16],[15,4,15,6],[15,7,15,16],[16,4,16,6],[16,7,16,16],[17,4,17,6],[17,7,17,16],[7,1,7,18],[7,19,7,20],[1,9,5,19],[2,24,6,29],[5,7,5,8],[6,7,6,8],[6,15,6,16]]}
[]
[null,null,null,null,null,null,null,null,null,{"$f":"\"Individuele Detailfiche - Omgeving \" &H14&_xlfn.UNICHAR(10)& \"('\"&H15&\"')\"","v":"Individuele Detailfiche - Omgeving 2\n('<< Gelieve de naam van omgeving 2 in te vullen >>')"}]
[null,null,2]
[]
[]
[]
[]
[null,"Vul in onderstaande tabel de gevraagde gegevens in, vink alle verklaringen aan die op de aanvraag van toepassing zijn. Toepasselijke bijlages geeft u een (betekenisvolle naam) – vb. raming school ABC. Vermeld deze naam op de voorziene plaatsen in kolom T.  Indien één en dezelfde bijlage de info van meerdere items bundelt, leid ons dan in “kolom  U\" naar het passende paginanummer. Vergeet niet de bijlages samen met het aangevulde aanvraagformulier over te maken.",null,null,null,null,null,null,null,null,null,null,null,null,null,null,null,null,null,"Bijlagen",null,"Validatie \nMOW","Wettelijke \nverwijzing"]
[]
[]
[null,"0. Kostenoverzicht",null,null,null,null,null,null,null,null,null,null,null,null,null,null,null,null,null,"Naam Bijlage","Pagina n°","Evaluatie"]
[null,null,null,null,"Details per omgeving (Automatisch aangevuld op basis van overzicht)"]
[null,null,null,null,null,null,null,null,null,null,null,null,null,null,null,null,null,"link"]
[null,null,null,null,"Omgeving n°",null,null,2,null,null,null,null,null,null,null,null,null,{"$f":"HYPERLINK(\"#'Aanvraagformulier'!G28\",\"Klik hier\")","v":"Klik hier"}]
[null,null,null,null,"Naam omgeving",null,null,{"$f":"VLOOKUP(H$14,Aanvraagformulier!$F$25:$N$37,2,FALSE)","v":"<< Gelieve de naam van omgeving 2 in te vullen >>"}]
[null,null,null,null,"Type \nwerkzaamheden",null,null,{"$f":"VLOOKUP(H$14,Aanvraagformulier!$F$25:$N$37,5,FALSE)","v":"<<Maak een keuze>>"}]
[null,null,null,null,"Raming kosten\n (excl. BTW)",null,null,{"$f":"VLOOKUP(H$14,Aanvraagformulier!$F$25:$N$37,8,FALSE)","v":0}]
[null,null,null,null,"Raming kosten\n (incl. BTW)",null,null,{"$f":"VLOOKUP(H$14,Aanvraagformulier!$F$25:$N$37,9,FALSE)","v":0}]
[]
[null,null,false,null,null,null,null,"De raming van de kosten werd toegevoegd aan het dossier en opgenomen in de bijlage met referentie.",null,null,null,null,null,null,null,null,null,null,null,null,null,null,"Art. 7  Eerste Lid 2° (1)"]
[]
[]
[null,"1. Omschrijving werken",null,null,null,null,null,null,null,null,null,null,null,null,null,null,null,null,null,"Naam Bijlage (optioneel)","Pagina n°"]
[null,null,false]
[null,null,null,null,null,null,null,"Omschrijving werken"]
[null,null,null,null,null,null,null,null,null,null,null,null,null,null,null,null,null,null,null,null,null,null,"Art. 7  Eerste Lid 1° (1)"]
[]
[null,null,false,null,null,null,null,"Optioneel - u kunt een verduidelijkende bijlage toevoegen ter verduidelijking/vervanging van bovenstaand veld."]
[]
[null,"2. Locatie",null,null,null,null,null,null,null,null,null,null,null,null,null,null,null,null,null,"Naam Bijlage","Pagina n°"]
[]
[null,null,false,null,null,null,null,"Een kaart waarop de fysieke locatie van de schooltoegang en de zone van de werken aangeduid is, werd toegevoegd aan het dossier.",null,null,null,null,null,null,null,null,null,null,null,null,null,null,"Art. 1. 4° - art. 2 §1 1° (1) "]
[]
[]
[null,null,false,null,null,null,null,"De schoolomgeving (de zone waarin de werken voorzien zijn) bevindt zich:",null,null,null,null,null,null,null,null,null,null,null,null,null,null,"Art. 1. 4° - art. 2 §1 1° (1) "]
[]
[null,null,null,false,null,null,null,"i) Binnen een straal van 100 meter rond de schooltoegang."]
[]
[null,null,null,false,null,null,null,"ii) Of tot het eerste kruispunt aan weerzijden indien dat verder ligt dan 100 meter."]
[]
[]
[null,"3. Doel en aard"]
[]
[null,null,false,null,null,null,null,"Uitgaven zijn erop gericht de verkeersveiligheid van schoolkinderen te verbeteren. Selecteer (enkel) de relevante uitgave(n):",null,null,null,null,null,null,null,null,null,null,null,null,null,null,"Art. 2. §1 2° (1)"]
[]
[null,null,null,false,null,null,null,"i) Uitgaven voor verkeerssignalisatie.",null,null,null,null,null,null,null,null,null,null,null,null,null,null,"Art. 3 (1)"]
[null,null,null,null,null,null,null,"EN/OF",null,null,null,null,null,null,null,null,null,null,null,null,null,null,"Art. 3 (1)"]
[null,null,null,false,null,null,null,"ii) Uitgaven voor kleinere infrastructurele maatregelen die de verkeersveiligheid in de schoolomgeving verhogen."]
[]
[null,"4. Timing",null,null,null,null,null,null,null,null,null,null,null,null,null,null,null,null,null,"Naam Bijlage","Pagina n°"]
[]
[null,null,false,null,null,null,null,"De (geplande) werken worden uitgevoerd, rekening houdend met een voltooiingsdatum binnen de zes maanden na de dag van beslissing van toekenning. De finale stukken zullen ten laatste 60 dagen na voormelde datum ingediend moeten worden.",null,null,null,null,null,null,null,null,null,null,null,null,null,null,"Art. 2 §3 juncto art. 3 (1)"]
[]
[]
[null,null,null,null,null,null,null,"Voorziene datum aanvang van de werken",null,null,null,null,null,null,null,{"$f":"IF(OR(ISBLANK(L55),ISBLANK(L56)),\"Gelieve beide data in te vullen\",\"\")","v":"Gelieve beide data in te vullen"}]
[null,null,null,null,null,null,null,"Voorziene datum einde van de werken"]
[null,null,null,null,null,null,null,"Duurtijd (kalenderdagen)",null,null,null,{"$f":"IF(OR(ISBLANK(L55),ISBLANK(L56)),\"Gelieve bovenstaande cellen in te vullen\",_xlfn.DAYS(L56,L55))","v":"Gelieve bovenstaande cellen in te vullen"}]
[]
[null,null,null,null,null,null,null,"De werken worden uitgevoerd binnen 6 maanden na de dag van beslissing van toekenning. De finale stukken worden ten laatste 60 dagen na einddatum van de werken ingediend."]
[]
[]
[null,null,true,null,null,null,null,"De planning van de uitvoering van de werken voor de omgeving werd toegevoegd in bijlage met referentie.",null,null,null,null,null,null,null,null,null,null,null,null,null,null,"Art. 7  Eerste Lid 13 (1)"]
[null,null,true]
[null,"5. Informatie domeinbeheerder",null,null,null,null,null,null,null,null,null,null,null,null,null,null,null,null,null,"Naam Bijlage (optioneel)","Pagina n°","Compleet?"]
[]
[null,null,false,null,null,null,null,null,null,null,null,null,null,null,null,null,null,null,null,null,null,null,"Art. 7  Eerste Lid 1°-4° (1)"]
[]
[null,null,null,false]
[null,null,null,false]
[null,null,null,false]
[null,null,2,false,null,null,null,"Het domein waarop de werken worden uitgevoerd, is in het beheer van de gemeente."]
[]
[null,null,null,null,null,null,null,"Indien niet, vul aan:"]
[null,null,null,null,null,null,null,null,null,"Type",null,"Identiteit domeinbeheerder"]
[null,null,null,null,null,null,null,null,null,"Privaat"]
[]
[null,null,null,null,null,null,null,"Het akkoord van de deze domeinbeheerder werd als bijlage toegevoegd aan de dossieraanvraag.",null,null,null,null,null,null,null,null,null,null,null,null,null,null,"Art. 7  Eerste Lid 5° (1)"]
[]
[null,null,true]
[]
[]
[]
[]
[null,"Voor de administratie (MOW)",null,null,null,null,null,null,null,null,null,null,null,null,null,null,"Voor de aanvrager (Naam + Functie)"]
[null,null,null,null,null,null,null,null,null,null,null,"Hide Row"]

{"sheet":"Omgeving (3)","index":4,"n_rows":85,"n_cols":23,"rows_kept":85,"cut":false,"hidden":true,"merged":[[75,19,77,19],[75,20,77,20],[78,7,78,18],[69,7,69,18],[70,7,70,15],[73,9,73,10],[73,11,73,14],[74,9,74,10],[74,11,74,14],[68,7,68,18],[43,7,44,17],[45,7,45,18],[46,7,46,18],[47,7,47,18],[51,7,52,16],[54,11,54,14],[54,15,54,17],[55,11,55,14],[56,11,56,14],[58,7,59,16],[65,7,65,18],[67,7,67,18],[19,7,19,17],[24,7,24,18],[24,21,28,21],[27,7,28,17],[30,21,40,21],[31,7,32,17],[34,7,34,17],[36,7,36,18],[37,7,37,18],[38,7,38,18],[39,7,39,18],[11,4,11,16],[13,4,13,6],[13,7,13,16],[13,17,17,17],[14,4,14,6],[14,7,14,16],[15,4,15,6],[15,7,15,16],[16,4,16,6],[16,7,16,16],[17,4,17,6],[17,7,17,16],[7,1,7,18],[7,19,7,20],[1,9,5,19],[2,24,6,29],[5,7,5,8],[6,7,6,8],[6,15,6,16]]}
[]
[null,null,null,null,null,null,null,null,null,{"$f":"\"Individuele Detailfiche - Omgeving \" &H14&_xlfn.UNICHAR(10)& \"('\"&H15&\"')\"","v":"Individuele Detailfiche - Omgeving 3\n('<< Gelieve de naam van omgeving 3 in te vullen >>')"}]
[null,null,2]
[]
[]
[]
[]
[null,"Vul in onderstaande tabel de gevraagde gegevens in, vink alle verklaringen aan die op de aanvraag van toepassing zijn. Toepasselijke bijlages geeft u een (betekenisvolle naam) – vb. raming school ABC. Vermeld deze naam op de voorziene plaatsen in kolom T.  Indien één en dezelfde bijlage de info van meerdere items bundelt, leid ons dan in “kolom  U\" naar het passende paginanummer. Vergeet niet de bijlages samen met het aangevulde aanvraagformulier over te maken.",null,null,null,null,null,null,null,null,null,null,null,null,null,null,null,null,null,"Bijlagen",null,"Validatie \nMOW","Wettelijke \nverwijzing"]
[]
[]
[null,"0. Kostenoverzicht",null,null,null,null,null,null,null,null,null,null,null,null,null,null,null,null,null,"Naam Bijlage","Pagina n°","Evaluatie"]
[null,null,null,null,"Details per omgeving (Automatisch aangevuld op basis van overzicht)"]
[null,null,null,null,null,null,null,null,null,null,null,null,null,null,null,null,null,"link"]
[null,null,null,null,"Omgeving n°",null,null,3,null,null,null,null,null,null,null,null,null,{"$f":"HYPERLINK(\"#'Aanvraagformulier'!G28\",\"Klik hier\")","v":"Klik hier"}]
[null,null,null,null,"Naam omgeving",null,null,{"$f":"VLOOKUP(H$14,Aanvraagformulier!$F$25:$N$37,2,FALSE)","v":"<< Gelieve de naam van omgeving 3 in te vullen >>"}]
[null,null,null,null,"Type \nwerkzaamheden",null,null,{"$f":"VLOOKUP(H$14,Aanvraagformulier!$F$25:$N$37,5,FALSE)","v":"<<Maak een keuze>>"}]
[null,null,null,null,"Raming kosten\n (excl. BTW)",null,null,{"$f":"VLOOKUP(H$14,Aanvraagformulier!$F$25:$N$37,8,FALSE)","v":0}]
[null,null,null,null,"Raming kosten\n (incl. BTW)",null,null,{"$f":"VLOOKUP(H$14,Aanvraagformulier!$F$25:$N$37,9,FALSE)","v":0}]
[]
[null,null,false,null,null,null,null,"De raming van de kosten werd toegevoegd aan het dossier en opgenomen in de bijlage met referentie.",null,null,null,null,null,null,null,null,null,null,null,null,null,null,"Art. 7  Eerste Lid 2° (1)"]
[]
[]
[null,"1. Omschrijving werken",null,null,null,null,null,null,null,null,null,null,null,null,null,null,null,null,null,"Naam Bijlage (optioneel)","Pagina n°"]
[null,null,false]
[null,null,null,null,null,null,null,"Omschrijving werken"]
[null,null,null,null,null,null,null,null,null,null,null,null,null,null,null,null,null,null,null,null,null,null,"Art. 7  Eerste Lid 1° (1)"]
[]
[null,null,false,null,null,null,null,"Optioneel - u kunt een verduidelijkende bijlage toevoegen ter verduidelijking/vervanging van bovenstaand veld."]
[]
[null,"2. Locatie",null,null,null,null,null,null,null,null,null,null,null,null,null,null,null,null,null,"Naam Bijlage","Pagina n°"]
[]
[null,null,false,null,null,null,null,"Een kaart waarop de fysieke locatie van de schooltoegang en de zone van de werken aangeduid is, werd toegevoegd aan het dossier.",null,null,null,null,null,null,null,null,null,null,null,null,null,null,"Art. 1. 4° - art. 2 §1 1° (1) "]
[]
[]
[null,null,false,null,null,null,null,"De schoolomgeving (de zone waarin de werken voorzien zijn) bevindt zich:",null,null,null,null,null,null,null,null,null,null,null,null,null,null,"Art. 1. 4° - art. 2 §1 1° (1) "]
[]
[null,null,null,false,null,null,null,"i) Binnen een straal van 100 meter rond de schooltoegang."]
[]
[null,null,null,false,null,null,null,"ii) Of tot het eerste kruispunt aan weerzijden indien dat verder ligt dan 100 meter."]
[]
[]
[null,"3. Doel en aard"]
[]
[null,null,false,null,null,null,null,"Uitgaven zijn erop gericht de verkeersveiligheid van schoolkinderen te verbeteren. Selecteer (enkel) de relevante uitgave(n):",null,null,null,null,null,null,null,null,null,null,null,null,null,null,"Art. 2. §1 2° (1)"]
[]
[null,null,null,false,null,null,null,"i) Uitgaven voor verkeerssignalisatie.",null,null,null,null,null,null,null,null,null,null,null,null,null,null,"Art. 3 (1)"]
[null,null,null,null,null,null,null,"EN/OF",null,null,null,null,null,null,null,null,null,null,null,null,null,null,"Art. 3 (1)"]
[null,null,null,false,null,null,null,"ii) Uitgaven voor kleinere infrastructurele maatregelen die de verkeersveiligheid in de schoolomgeving verhogen."]
[]
[null,"4. Timing",null,null,null,null,null,null,null,null,null,null,null,null,null,null,null,null,null,"Naam Bijlage","Pagina n°"]
[]
[null,null,false,null,null,null,null,"De (geplande) werken worden uitgevoerd, rekening houdend met een voltooiingsdatum binnen de zes maanden na de dag van beslissing van toekenning. De finale stukken zullen ten laatste 60 dagen na voormelde datum ingediend moeten worden.",null,null,null,null,null,null,null,null,null,null,null,null,null,null,"Art. 2 §3 juncto art. 3 (1)"]
[]
[]
[null,null,null,null,null,null,null,"Voorziene datum aanvang van de werken",null,null,null,null,null,null,null,{"$f":"IF(OR(ISBLANK(L55),ISBLANK(L56)),\"Gelieve beide data in te vullen\",\"\")","v":"Gelieve beide data in te vullen"}]
[null,null,null,null,null,null,null,"Voorziene datum einde van de werken"]
[null,null,null,null,null,null,null,"Duurtijd (kalenderdagen)",null,null,null,{"$f":"IF(OR(ISBLANK(L55),ISBLANK(L56)),\"Gelieve bovenstaande cellen in te vullen\",_xlfn.DAYS(L56,L55))","v":"Gelieve bovenstaande cellen in te vullen"}]
[]
[null,null,null,null,null,null,null,"De werken worden uitgevoerd binnen 6 maanden na de dag van beslissing van toekenning. De finale stukken worden ten laatste 60 dagen na einddatum van de werken ingediend."]
[]
[]
[null,null,true,null,null,null,null,"De planning van de uitvoering van de werken voor de omgeving werd toegevoegd in bijlage met referentie.",null,null,null,null,null,null,null,null,null,null,null,null,null,null,"Art. 7  Eerste Lid 13 (1)"]
[null,null,true]
[null,"5. Informatie domeinbeheerder",null,null,null,null,null,null,null,null,null,null,null,null,null,null,null,null,null,"Naam Bijlage (optioneel)","Pagina n°","Compleet?"]
[]
[null,null,false,null,null,null,null,null,null,null,null,null,null,null,null,null,null,null,null,null,null,null,"Art. 7  Eerste Lid 1°-4° (1)"]
[]
[null,null,null,false]
[null,null,null,false]
[null,null,null,false]
[null,null,2,false,null,null,null,"Het domein waarop de werken worden uitgevoerd, is in het beheer van de gemeente."]
[]
[null,null,null,null,null,null,null,"Indien niet, vul aan:"]
[null,null,null,null,null,null,null,null,null,"Type",null,"Identiteit domeinbeheerder"]
[null,null,null,null,null,null,null,null,null,"Privaat"]
[]
[null,null,null,null,null,null,null,"Het akkoord van de deze domeinbeheerder werd als bijlage toegevoegd aan de dossieraanvraag.",null,null,null,null,null,null,null,null,null,null,null,null,null,null,"Art. 7  Eerste Lid 5° (1)"]
[]
[null,null,true]
[]
[]
[]
[]
[null,"Voor de administratie (MOW)",null,null,null,null,null,null,null,null,null,null,null,null,null,null,"Voor de aanvrager (Naam + Functie)"]
[null,null,null,null,null,null,null,null,null,null,null,"Hide Row"]

{"sheet":"Omgeving (4)","index":5,"n_rows":85,"n_cols":23,"rows_kept":85,"cut":false,"hidden":true,"merged":[[75,19,77,19],[75,20,77,20],[78,7,78,18],[69,7,69,18],[70,7,70,15],[73,9,73,10],[73,11,73,14],[74,9,74,10],[74,11,74,14],[68,7,68,18],[43,7,44,17],[45,7,45,18],[46,7,46,18],[47,7,47,18],[51,7,52,16],[54,11,54,14],[54,15,54,17],[55,11,55,14],[56,11,56,14],[58,7,59,16],[65,7,65,18],[67,7,67,18],[19,7,19,17],[24,7,24,18],[24,21,28,21],[27,7,28,17],[30,21,40,21],[31,7,32,17],[34,7,34,17],[36,7,36,18],[37,7,37,18],[38,7,38,18],[39,7,39,18],[11,4,11,16],[13,4,13,6],[13,7,13,16],[13,17,17,17],[14,4,14,6],[14,7,14,16],[15,4,15,6],[15,7,15,16],[16,4,16,6],[16,7,16,16],[17,4,17,6],[17,7,17,16],[7,1,7,18],[7,19,7,20],[1,9,5,19],[2,24,6,29],[5,7,5,8],[6,7,6,8],[6,15,6,16]]}
[]
[null,null,null,null,null,null,null,null,null,{"$f":"\"Individuele Detailfiche - Omgeving \" &H14&_xlfn.UNICHAR(10)& \"('\"&H15&\"')\"","v":"Individuele Detailfiche - Omgeving 4\n('<< Gelieve de naam van omgeving 4 in te vullen >>')"}]
[null,null,2]
[]
[]
[]
[]
[null,"Vul in onderstaande tabel de gevraagde gegevens in, vink alle verklaringen aan die op de aanvraag van toepassing zijn. Toepasselijke bijlages geeft u een (betekenisvolle naam) – vb. raming school ABC. Vermeld deze naam op de voorziene plaatsen in kolom T.  Indien één en dezelfde bijlage de info van meerdere items bundelt, leid ons dan in “kolom  U\" naar het passende paginanummer. Vergeet niet de bijlages samen met het aangevulde aanvraagformulier over te maken.",null,null,null,null,null,null,null,null,null,null,null,null,null,null,null,null,null,"Bijlagen",null,"Validatie \nMOW","Wettelijke \nverwijzing"]
[]
[]
[null,"0. Kostenoverzicht",null,null,null,null,null,null,null,null,null,null,null,null,null,null,null,null,null,"Naam Bijlage","Pagina n°","Evaluatie"]
[null,null,null,null,"Details per omgeving (Automatisch aangevuld op basis van overzicht)"]
[null,null,null,null,null,null,null,null,null,null,null,null,null,null,null,null,null,"link"]
[null,null,null,null,"Omgeving n°",null,null,4,null,null,null,null,null,null,null,null,null,{"$f":"HYPERLINK(\"#'Aanvraagformulier'!G28\",\"Klik hier\")","v":"Klik hier"}]
[null,null,null,null,"Naam omgeving",null,null,{"$f":"VLOOKUP(H$14,Aanvraagformulier!$F$25:$N$37,2,FALSE)","v":"<< Gelieve de naam van omgeving 4 in te vullen >>"}]
[null,null,null,null,"Type \nwerkzaamheden",null,null,{"$f":"VLOOKUP(H$14,Aanvraagformulier!$F$25:$N$37,5,FALSE)","v":"<<Maak een keuze>>"}]
[null,null,null,null,"Raming kosten\n (excl. BTW)",null,null,{"$f":"VLOOKUP(H$14,Aanvraagformulier!$F$25:$N$37,8,FALSE)","v":0}]
[null,null,null,null,"Raming kosten\n (incl. BTW)",null,null,{"$f":"VLOOKUP(H$14,Aanvraagformulier!$F$25:$N$37,9,FALSE)","v":0}]
[]
[null,null,false,null,null,null,null,"De raming van de kosten werd toegevoegd aan het dossier en opgenomen in de bijlage met referentie.",null,null,null,null,null,null,null,null,null,null,null,null,null,null,"Art. 7  Eerste Lid 2° (1)"]
[]
[]
[null,"1. Omschrijving werken",null,null,null,null,null,null,null,null,null,null,null,null,null,null,null,null,null,"Naam Bijlage (optioneel)","Pagina n°"]
[null,null,false]
[null,null,null,null,null,null,null,"Omschrijving werken"]
[null,null,null,null,null,null,null,null,null,null,null,null,null,null,null,null,null,null,null,null,null,null,"Art. 7  Eerste Lid 1° (1)"]
[]
[null,null,false,null,null,null,null,"Optioneel - u kunt een verduidelijkende bijlage toevoegen ter verduidelijking/vervanging van bovenstaand veld."]
[]
[null,"2. Locatie",null,null,null,null,null,null,null,null,null,null,null,null,null,null,null,null,null,"Naam Bijlage","Pagina n°"]
[]
[null,null,false,null,null,null,null,"Een kaart waarop de fysieke locatie van de schooltoegang en de zone van de werken aangeduid is, werd toegevoegd aan het dossier.",null,null,null,null,null,null,null,null,null,null,null,null,null,null,"Art. 1. 4° - art. 2 §1 1° (1) "]
[]
[]
[null,null,false,null,null,null,null,"De schoolomgeving (de zone waarin de werken voorzien zijn) bevindt zich:",null,null,null,null,null,null,null,null,null,null,null,null,null,null,"Art. 1. 4° - art. 2 §1 1° (1) "]
[]
[null,null,null,false,null,null,null,"i) Binnen een straal van 100 meter rond de schooltoegang."]
[]
[null,null,null,false,null,null,null,"ii) Of tot het eerste kruispunt aan weerzijden indien dat verder ligt dan 100 meter."]
[]
[]
[null,"3. Doel en aard"]
[]
[null,null,false,null,null,null,null,"Uitgaven zijn erop gericht de verkeersveiligheid van schoolkinderen te verbeteren. Selecteer (enkel) de relevante uitgave(n):",null,null,null,null,null,null,null,null,null,null,null,null,null,null,"Art. 2. §1 2° (1)"]
[]
[null,null,null,false,null,null,null,"i) Uitgaven voor verkeerssignalisatie.",null,null,null,null,null,null,null,null,null,null,null,null,null,null,"Art. 3 (1)"]
[null,null,null,null,null,null,null,"EN/OF",null,null,null,null,null,null,null,null,null,null,null,null,null,null,"Art. 3 (1)"]
[null,null,null,false,null,null,null,"ii) Uitgaven voor kleinere infrastructurele maatregelen die de verkeersveiligheid in de schoolomgeving verhogen."]
[]
[null,"4. Timing",null,null,null,null,null,null,null,null,null,null,null,null,null,null,null,null,null,"Naam Bijlage","Pagina n°"]
[]
[null,null,false,null,null,null,null,"De (geplande) werken worden uitgevoerd, rekening houdend met een voltooiingsdatum binnen de zes maanden na de dag van beslissing van toekenning. De finale stukken zullen ten laatste 60 dagen na voormelde datum ingediend moeten worden.",null,null,null,null,null,null,null,null,null,null,null,null,null,null,"Art. 2 §3 juncto art. 3 (1)"]
[]
[]
[null,null,null,null,null,null,null,"Voorziene datum aanvang van de werken",null,null,null,null,null,null,null,{"$f":"IF(OR(ISBLANK(L55),ISBLANK(L56)),\"Gelieve beide data in te vullen\",\"\")","v":"Gelieve beide data in te vullen"}]
[null,null,null,null,null,null,null,"Voorziene datum einde van de werken"]
[null,null,null,null,null,null,null,"Duurtijd (kalenderdagen)",null,null,null,{"$f":"IF(OR(ISBLANK(L55),ISBLANK(L56)),\"Gelieve bovenstaande cellen in te vullen\",_xlfn.DAYS(L56,L55))","v":"Gelieve bovenstaande cellen in te vullen"}]
[]
[null,null,null,null,null,null,null,"De werken worden uitgevoerd binnen 6 maanden na de dag van beslissing van toekenning. De finale stukken worden ten laatste 60 dagen na einddatum van de werken ingediend."]
[]
[]
[null,null,true,null,null,null,null,"De planning van de uitvoering van de werken voor de omgeving werd toegevoegd in bijlage met referentie.",null,null,null,null,null,null,null,null,null,null,null,null,null,null,"Art. 7  Eerste Lid 13 (1)"]
[null,null,true]
[null,"5. Informatie domeinbeheerder",null,null,null,null,null,null,null,null,null,null,null,null,null,null,null,null,null,"Naam Bijlage (optioneel)","Pagina n°","Compleet?"]
[]
[null,null,false,null,null,null,null,null,null,null,null,null,null,null,null,null,null,null,null,null,null,null,"Art. 7  Eerste Lid 1°-4° (1)"]
[]
[null,null,null,false]
[null,null,null,false]
[null,null,null,false]
[null,null,2,false,null,null,null,"Het domein waarop de werken worden uitgevoerd, is in het beheer van de gemeente."]
[]
[null,null,null,null,null,null,null,"Indien niet, vul aan:"]
[null,null,null,null,null,null,null,null,null,"Type",null,"Identiteit domeinbeheerder"]
[null,null,null,null,null,null,null,null,null,"Privaat"]
[]
[null,null,null,null,null,null,null,"Het akkoord van de deze domeinbeheerder werd als bijlage toegevoegd aan de dossieraanvraag.",null,null,null,null,null,null,null,null,null,null,null,null,null,null,"Art. 7  Eerste Lid 5° (1)"]
[]
[null,null,true]
[]
[]
[]
[]
[null,"Voor de administratie (MOW)",null,null,null,null,null,null,null,null,null,null,null,null,null,null,"Voor de aanvrager (Naam + Functie)"]
[null,null,null,null,null,null,null,null,null,null,null,"Hide Row"]

{"sheet":"Omgeving (5)","index":6,"n_rows":85,"n_cols":23,"rows_kept":85,"cut":false,"hidden":true,"merged":[[75,19,77,19],[75,20,77,20],[78,7,78,18],[69,7,69,18],[70,7,70,15],[73,9,73,10],[73,11,73,14],[74,9,74,10],[74,11,74,14],[68,7,68,18],[43,7,44,17],[45,7,45,18],[46,7,46,18],[47,7,47,18],[51,7,52,16],[54,11,54,14],[54,15,54,17],[55,11,55,14],[56,11,56,14],[58,7,59,16],[65,7,65,18],[67,7,67,18],[19,7,19,17],[24,7,24,18],[24,21,28,21],[27,7,28,17],[30,21,40,21],[31,7,32,17],[34,7,34,17],[36,7,36,18],[37,7,37,18],[38,7,38,18],[39,7,39,18],[11,4,11,16],[13,4,13,6],[13,7,13,16],[13,17,17,17],[14,4,14,6],[14,7,14,16],[15,4,15,6],[15,7,15,16],[16,4,16,6],[16,7,16,16],[17,4,17,6],[17,7,17,16],[7,1,7,18],[7,19,7,20],[1,9,5,19],[2,24,6,29],[5,7,5,8],[6,7,6,8],[6,15,6,16]]}
[]
[null,null,null,null,null,null,null,null,null,{"$f":"\"Individuele Detailfiche - Omgeving \" &H14&_xlfn.UNICHAR(10)& \"('\"&H15&\"')\"","v":"Individuele Detailfiche - Omgeving 5\n('<< Gelieve de naam van omgeving 5 in te vullen >>')"}]
[null,null,2]
[]
[]
[]
[]
[null,"Vul in onderstaande tabel de gevraagde gegevens in, vink alle verklaringen aan die op de aanvraag van toepassing zijn. Toepasselijke bijlages geeft u een (betekenisvolle naam) – vb. raming school ABC. Vermeld deze naam op de voorziene plaatsen in kolom T.  Indien één en dezelfde bijlage de info van meerdere items bundelt, leid ons dan in “kolom  U\" naar het passende paginanummer. Vergeet niet de bijlages samen met het aangevulde aanvraagformulier over te maken.",null,null,null,null,null,null,null,null,null,null,null,null,null,null,null,null,null,"Bijlagen",null,"Validatie \nMOW","Wettelijke \nverwijzing"]
[]
[]
[null,"0. Kostenoverzicht",null,null,null,null,null,null,null,null,null,null,null,null,null,null,null,null,null,"Naam Bijlage","Pagina n°","Evaluatie"]
[null,null,null,null,"Details per omgeving (Automatisch aangevuld op basis van overzicht)"]
[null,null,null,null,null,null,null,null,null,null,null,null,null,null,null,null,null,"link"]
[null,null,null,null,"Omgeving n°",null,null,5,null,null,null,null,null,null,null,null,null,{"$f":"HYPERLINK(\"#'Aanvraagformulier'!G28\",\"Klik hier\")","v":"Klik hier"}]
[null,null,null,null,"Naam omgeving",null,null,{"$f":"VLOOKUP(H$14,Aanvraagformulier!$F$25:$N$37,2,FALSE)","v":"<< Gelieve de naam van omgeving 5 in te vullen >>"}]
[null,null,null,null,"Type \nwerkzaamheden",null,null,{"$f":"VLOOKUP(H$14,Aanvraagformulier!$F$25:$N$37,5,FALSE)","v":"<<Maak een keuze>>"}]
[null,null,null,null,"Raming kosten\n (excl. BTW)",null,null,{"$f":"VLOOKUP(H$14,Aanvraagformulier!$F$25:$N$37,8,FALSE)","v":0}]
[null,null,null,null,"Raming kosten\n (incl. BTW)",null,null,{"$f":"VLOOKUP(H$14,Aanvraagformulier!$F$25:$N$37,9,FALSE)","v":0}]
[]
[null,null,false,null,null,null,null,"De raming van de kosten werd toegevoegd aan het dossier en opgenomen in de bijlage met referentie.",null,null,null,null,null,null,null,null,null,null,null,null,null,null,"Art. 7  Eerste Lid 2° (1)"]
[]
[]
[null,"1. Omschrijving werken",null,null,null,null,null,null,null,null,null,null,null,null,null,null,null,null,null,"Naam Bijlage (optioneel)","Pagina n°"]
[null,null,false]
[null,null,null,null,null,null,null,"Omschrijving werken"]
[null,null,null,null,null,null,null,null,null,null,null,null,null,null,null,null,null,null,null,null,null,null,"Art. 7  Eerste Lid 1° (1)"]
[]
[null,null,false,null,null,null,null,"Optioneel - u kunt een verduidelijkende bijlage toevoegen ter verduidelijking/vervanging van bovenstaand veld."]
[]
[null,"2. Locatie",null,null,null,null,null,null,null,null,null,null,null,null,null,null,null,null,null,"Naam Bijlage","Pagina n°"]
[]
[null,null,false,null,null,null,null,"Een kaart waarop de fysieke locatie van de schooltoegang en de zone van de werken aangeduid is, werd toegevoegd aan het dossier.",null,null,null,null,null,null,null,null,null,null,null,null,null,null,"Art. 1. 4° - art. 2 §1 1° (1) "]
[]
[]
[null,null,false,null,null,null,null,"De schoolomgeving (de zone waarin de werken voorzien zijn) bevindt zich:",null,null,null,null,null,null,null,null,null,null,null,null,null,null,"Art. 1. 4° - art. 2 §1 1° (1) "]
[]
[null,null,null,false,null,null,null,"i) Binnen een straal van 100 meter rond de schooltoegang."]
[]
[null,null,null,false,null,null,null,"ii) Of tot het eerste kruispunt aan weerzijden indien dat verder ligt dan 100 meter."]
[]
[]
[null,"3. Doel en aard"]
[]
[null,null,false,null,null,null,null,"Uitgaven zijn erop gericht de verkeersveiligheid van schoolkinderen te verbeteren. Selecteer (enkel) de relevante uitgave(n):",null,null,null,null,null,null,null,null,null,null,null,null,null,null,"Art. 2. §1 2° (1)"]
[]
[null,null,null,false,null,null,null,"i) Uitgaven voor verkeerssignalisatie.",null,null,null,null,null,null,null,null,null,null,null,null,null,null,"Art. 3 (1)"]
[null,null,null,null,null,null,null,"EN/OF",null,null,null,null,null,null,null,null,null,null,null,null,null,null,"Art. 3 (1)"]
[null,null,null,false,null,null,null,"ii) Uitgaven voor kleinere infrastructurele maatregelen die de verkeersveiligheid in de schoolomgeving verhogen."]
[]
[null,"4. Timing",null,null,null,null,null,null,null,null,null,null,null,null,null,null,null,null,null,"Naam Bijlage","Pagina n°"]
[]
[null,null,false,null,null,null,null,"De (geplande) werken worden uitgevoerd, rekening houdend met een voltooiingsdatum binnen de zes maanden na de dag van beslissing van toekenning. De finale stukken zullen ten laatste 60 dagen na voormelde datum ingediend moeten worden.",null,null,null,null,null,null,null,null,null,null,null,null,null,null,"Art. 2 §3 juncto art. 3 (1)"]
[]
[]
[null,null,null,null,null,null,null,"Voorziene datum aanvang van de werken",null,null,null,null,null,null,null,{"$f":"IF(OR(ISBLANK(L55),ISBLANK(L56)),\"Gelieve beide data in te vullen\",\"\")","v":"Gelieve beide data in te vullen"}]
[null,null,null,null,null,null,null,"Voorziene datum einde van de werken"]
[null,null,null,null,null,null,null,"Duurtijd (kalenderdagen)",null,null,null,{"$f":"IF(OR(ISBLANK(L55),ISBLANK(L56)),\"Gelieve bovenstaande cellen in te vullen\",_xlfn.DAYS(L56,L55))","v":"Gelieve bovenstaande cellen in te vullen"}]
[]
[null,null,null,null,null,null,null,"De werken worden uitgevoerd binnen 6 maanden na de dag van beslissing van toekenning. De finale stukken worden ten laatste 60 dagen na einddatum van de werken ingediend."]
[]
[]
[null,null,true,null,null,null,null,"De planning van de uitvoering van de werken voor de omgeving werd toegevoegd in bijlage met referentie.",null,null,null,null,null,null,null,null,null,null,null,null,null,null,"Art. 7  Eerste Lid 13 (1)"]
[null,null,true]
[null,"5. Informatie domeinbeheerder",null,null,null,null,null,null,null,null,null,null,null,null,null,null,null,null,null,"Naam Bijlage (optioneel)","Pagina n°","Compleet?"]
[]
[null,null,false,null,null,null,null,null,null,null,null,null,null,null,null,null,null,null,null,null,null,null,"Art. 7  Eerste Lid 1°-4° (1)"]
[]
[null,null,null,false]
[null,null,null,false]
[null,null,null,false]
[null,null,2,false,null,null,null,"Het domein waarop de werken worden uitgevoerd, is in het beheer van de gemeente."]
[]
[null,null,null,null,null,null,null,"Indien niet, vul aan:"]
[null,null,null,null,null,null,null,null,null,"Type",null,"Identiteit domeinbeheerder"]
[null,null,null,null,null,null,null,null,null,"Privaat"]
[]
[null,null,null,null,null,null,null,"Het akkoord van de deze domeinbeheerder werd als bijlage toegevoegd aan de dossieraanvraag.",null,null,null,null,null,null,null,null,null,null,null,null,null,null,"Art. 7  Eerste Lid 5° (1)"]
[]
[null,null,true]
[]
[]
[]
[]
[null,"Voor de administratie (MOW)",null,null,null,null,null,null,null,null,null,null,null,null,null,null,"Voor de aanvrager (Naam + Functie)"]
[null,null,null,null,null,null,null,null,null,null,null,"Hide Row"]

{"sheet":"Omgeving (6)","index":7,"n_rows":85,"n_cols":23,"rows_kept":85,"cut":false,"hidden":true,"merged":[[75,19,77,19],[75,20,77,20],[78,7,78,18],[69,7,69,18],[70,7,70,15],[73,9,73,10],[73,11,73,14],[74,9,74,10],[74,11,74,14],[68,7,68,18],[43,7,44,17],[45,7,45,18],[46,7,46,18],[47,7,47,18],[51,7,52,16],[54,11,54,14],[54,15,54,17],[55,11,55,14],[56,11,56,14],[58,7,59,16],[65,7,65,18],[67,7,67,18],[19,7,19,17],[24,7,24,18],[24,21,28,21],[27,7,28,17],[30,21,40,21],[31,7,32,17],[34,7,34,17],[36,7,36,18],[37,7,37,18],[38,7,38,18],[39,7,39,18],[11,4,11,16],[13,4,13,6],[13,7,13,16],[13,17,17,17],[14,4,14,6],[14,7,14,16],[15,4,15,6],[15,7,15,16],[16,4,16,6],[16,7,16,16],[17,4,17,6],[17,7,17,16],[7,1,7,18],[7,19,7,20],[1,9,5,19],[2,24,6,29],[5,7,5,8],[6,7,6,8],[6,15,6,16]]}
[]
[null,null,null,null,null,null,null,null,null,{"$f":"\"Individuele Detailfiche - Omgeving \" &H14&_xlfn.UNICHAR(10)& \"('\"&H15&\"')\"","v":"Individuele Detailfiche - Omgeving 6\n('<< Gelieve de naam van omgeving 6 in te vullen >>')"}]
[null,null,2]
[]
[]
[]
[]
[null,"Vul in onderstaande tabel de gevraagde gegevens in, vink alle verklaringen aan die op de aanvraag van toepassing zijn. Toepasselijke bijlages geeft u een (betekenisvolle naam) – vb. raming school ABC. Vermeld deze naam op de voorziene plaatsen in kolom T.  Indien één en dezelfde bijlage de info van meerdere items bundelt, leid ons dan in “kolom  U\" naar het passende paginanummer. Vergeet niet de bijlages samen met het aangevulde aanvraagformulier over te maken.",null,null,null,null,null,null,null,null,null,null,null,null,null,null,null,null,null,"Bijlagen",null,"Validatie \nMOW","Wettelijke \nverwijzing"]
[]
[]
[null,"0. Kostenoverzicht",null,null,null,null,null,null,null,null,null,null,null,null,null,null,null,null,null,"Naam Bijlage","Pagina n°","Evaluatie"]
[null,null,null,null,"Details per omgeving (Automatisch aangevuld op basis van overzicht)"]
[null,null,null,null,null,null,null,null,null,null,null,null,null,null,null,null,null,"link"]
[null,null,null,null,"Omgeving n°",null,null,6,null,null,null,null,null,null,null,null,null,{"$f":"HYPERLINK(\"#'Aanvraagformulier'!G28\",\"Klik hier\")","v":"Klik hier"}]
[null,null,null,null,"Naam omgeving",null,null,{"$f":"VLOOKUP(H$14,Aanvraagformulier!$F$25:$N$37,2,FALSE)","v":"<< Gelieve de naam van omgeving 6 in te vullen >>"}]
[null,null,null,null,"Type \nwerkzaamheden",null,null,{"$f":"VLOOKUP(H$14,Aanvraagformulier!$F$25:$N$37,5,FALSE)","v":"<<Maak een keuze>>"}]
[null,null,null,null,"Raming kosten\n (excl. BTW)",null,null,{"$f":"VLOOKUP(H$14,Aanvraagformulier!$F$25:$N$37,8,FALSE)","v":0}]
[null,null,null,null,"Raming kosten\n (incl. BTW)",null,null,{"$f":"VLOOKUP(H$14,Aanvraagformulier!$F$25:$N$37,9,FALSE)","v":0}]
[]
[null,null,false,null,null,null,null,"De raming van de kosten werd toegevoegd aan het dossier en opgenomen in de bijlage met referentie.",null,null,null,null,null,null,null,null,null,null,null,null,null,null,"Art. 7  Eerste Lid 2° (1)"]
[]
[]
[null,"1. Omschrijving werken",null,null,null,null,null,null,null,null,null,null,null,null,null,null,null,null,null,"Naam Bijlage (optioneel)","Pagina n°"]
[null,null,false]
[null,null,null,null,null,null,null,"Omschrijving werken"]
[null,null,null,null,null,null,null,null,null,null,null,null,null,null,null,null,null,null,null,null,null,null,"Art. 7  Eerste Lid 1° (1)"]
[]
[null,null,false,null,null,null,null,"Optioneel - u kunt een verduidelijkende bijlage toevoegen ter verduidelijking/vervanging van bovenstaand veld."]
[]
[null,"2. Locatie",null,null,null,null,null,null,null,null,null,null,null,null,null,null,null,null,null,"Naam Bijlage","Pagina n°"]
[]
[null,null,false,null,null,null,null,"Een kaart waarop de fysieke locatie van de schooltoegang en de zone van de werken aangeduid is, werd toegevoegd aan het dossier.",null,null,null,null,null,null,null,null,null,null,null,null,null,null,"Art. 1. 4° - art. 2 §1 1° (1) "]
[]
[]
[null,null,false,null,null,null,null,"De schoolomgeving (de zone waarin de werken voorzien zijn) bevindt zich:",null,null,null,null,null,null,null,null,null,null,null,null,null,null,"Art. 1. 4° - art. 2 §1 1° (1) "]
[]
[null,null,null,false,null,null,null,"i) Binnen een straal van 100 meter rond de schooltoegang."]
[]
[null,null,null,false,null,null,null,"ii) Of tot het eerste kruispunt aan weerzijden indien dat verder ligt dan 100 meter."]
[]
[]
[null,"3. Doel en aard"]
[]
[null,null,false,null,null,null,null,"Uitgaven zijn erop gericht de verkeersveiligheid van schoolkinderen te verbeteren. Selecteer (enkel) de relevante uitgave(n):",null,null,null,null,null,null,null,null,null,null,null,null,null,null,"Art. 2. §1 2° (1)"]
[]
[null,null,null,false,null,null,null,"i) Uitgaven voor verkeerssignalisatie.",null,null,null,null,null,null,null,null,null,null,null,null,null,null,"Art. 3 (1)"]
[null,null,null,null,null,null,null,"EN/OF",null,null,null,null,null,null,null,null,null,null,null,null,null,null,"Art. 3 (1)"]
[null,null,null,false,null,null,null,"ii) Uitgaven voor kleinere infrastructurele maatregelen die de verkeersveiligheid in de schoolomgeving verhogen."]
[]
[null,"4. Timing",null,null,null,null,null,null,null,null,null,null,null,null,null,null,null,null,null,"Naam Bijlage","Pagina n°"]
[]
[null,null,false,null,null,null,null,"De (geplande) werken worden uitgevoerd, rekening houdend met een voltooiingsdatum binnen de zes maanden na de dag van beslissing van toekenning. De finale stukken zullen ten laatste 60 dagen na voormelde datum ingediend moeten worden.",null,null,null,null,null,null,null,null,null,null,null,null,null,null,"Art. 2 §3 juncto art. 3 (1)"]
[]
[]
[null,null,null,null,null,null,null,"Voorziene datum aanvang van de werken",null,null,null,null,null,null,null,{"$f":"IF(OR(ISBLANK(L55),ISBLANK(L56)),\"Gelieve beide data in te vullen\",\"\")","v":"Gelieve beide data in te vullen"}]
[null,null,null,null,null,null,null,"Voorziene datum einde van de werken"]
[null,null,null,null,null,null,null,"Duurtijd (kalenderdagen)",null,null,null,{"$f":"IF(OR(ISBLANK(L55),ISBLANK(L56)),\"Gelieve bovenstaande cellen in te vullen\",_xlfn.DAYS(L56,L55))","v":"Gelieve bovenstaande cellen in te vullen"}]
[]
[null,null,null,null,null,null,null,"De werken worden uitgevoerd binnen 6 maanden na de dag van beslissing van toekenning. De finale stukken worden ten laatste 60 dagen na einddatum van de werken ingediend."]
[]
[]
[null,null,true,null,null,null,null,"De planning van de uitvoering van de werken voor de omgeving werd toegevoegd in bijlage met referentie.",null,null,null,null,null,null,null,null,null,null,null,null,null,null,"Art. 7  Eerste Lid 13 (1)"]
[null,null,true]
[null,"5. Informatie domeinbeheerder",null,null,null,null,null,null,null,null,null,null,null,null,null,null,null,null,null,"Naam Bijlage (optioneel)","Pagina n°","Compleet?"]
[]
[null,null,false,null,null,null,null,null,null,null,null,null,null,null,null,null,null,null,null,null,null,null,"Art. 7  Eerste Lid 1°-4° (1)"]
[]
[null,null,null,false]
[null,null,null,false]
[null,null,null,false]
[null,null,2,false,null,null,null,"Het domein waarop de werken worden uitgevoerd, is in het beheer van de gemeente."]
[]
[null,null,null,null,null,null,null,"Indien niet, vul aan:"]
[null,null,null,null,null,null,null,null,null,"Type",null,"Identiteit domeinbeheerder"]
[null,null,null,null,null,null,null,null,null,"Privaat"]
[]
[null,null,null,null,null,null,null,"Het akkoord van de deze domeinbeheerder werd als bijlage toegevoegd aan de dossieraanvraag.",null,null,null,null,null,null,null,null,null,null,null,null,null,null,"Art. 7  Eerste Lid 5° (1)"]
[]
[null,null,true]
[]
[]
[]
[]
[null,"Voor de administratie (MOW)",null,null,null,null,null,null,null,null,null,null,null,null,null,null,"Voor de aanvrager (Naam + Functie)"]
[null,null,null,null,null,null,null,null,null,null,null,"Hide Row"]

{"sheet":"Omgeving (7)","index":8,"n_rows":85,"n_cols":23,"rows_kept":85,"cut":false,"hidden":true,"merged":[[75,19,77,19],[75,20,77,20],[78,7,78,18],[69,7,69,18],[70,7,70,15],[73,9,73,10],[73,11,73,14],[74,9,74,10],[74,11,74,14],[68,7,68,18],[43,7,44,17],[45,7,45,18],[46,7,46,18],[47,7,47,18],[51,7,52,16],[54,11,54,14],[54,15,54,17],[55,11,55,14],[56,11,56,14],[58,7,59,16],[65,7,65,18],[67,7,67,18],[19,7,19,17],[24,7,24,18],[24,21,28,21],[27,7,28,17],[30,21,40,21],[31,7,32,17],[34,7,34,17],[36,7,36,18],[37,7,37,18],[38,7,38,18],[39,7,39,18],[11,4,11,16],[13,4,13,6],[13,7,13,16],[13,17,17,17],[14,4,14,6],[14,7,14,16],[15,4,15,6],[15,7,15,16],[16,4,16,6],[16,7,16,16],[17,4,17,6],[17,7,17,16],[7,1,7,18],[7,19,7,20],[1,9,5,19],[2,24,6,29],[5,7,5,8],[6,7,6,8],[6,15,6,16]]}
[]
[null,null,null,null,null,null,null,null,null,{"$f":"\"Individuele Detailfiche - Omgeving \" &H14&_xlfn.UNICHAR(10)& \"('\"&H15&\"')\"","v":"Individuele Detailfiche - Omgeving 7\n('<< Gelieve de naam van omgeving 7 in te vullen >>')"}]
[null,null,2]
[]
[]
[]
[]
[null,"Vul in onderstaande tabel de gevraagde gegevens in, vink alle verklaringen aan die op de aanvraag van toepassing zijn. Toepasselijke bijlages geeft u een (betekenisvolle naam) – vb. raming school ABC. Vermeld deze naam op de voorziene plaatsen in kolom T.  Indien één en dezelfde bijlage de info van meerdere items bundelt, leid ons dan in “kolom  U\" naar het passende paginanummer. Vergeet niet de bijlages samen met het aangevulde aanvraagformulier over te maken.",null,null,null,null,null,null,null,null,null,null,null,null,null,null,null,null,null,"Bijlagen",null,"Validatie \nMOW","Wettelijke \nverwijzing"]
[]
[]
[null,"0. Kostenoverzicht",null,null,null,null,null,null,null,null,null,null,null,null,null,null,null,null,null,"Naam Bijlage","Pagina n°","Evaluatie"]
[null,null,null,null,"Details per omgeving (Automatisch aangevuld op basis van overzicht)"]
[null,null,null,null,null,null,null,null,null,null,null,null,null,null,null,null,null,"link"]
[null,null,null,null,"Omgeving n°",null,null,7,null,null,null,null,null,null,null,null,null,{"$f":"HYPERLINK(\"#'Aanvraagformulier'!G28\",\"Klik hier\")","v":"Klik hier"}]
[null,null,null,null,"Naam omgeving",null,null,{"$f":"VLOOKUP(H$14,Aanvraagformulier!$F$25:$N$37,2,FALSE)","v":"<< Gelieve de naam van omgeving 7 in te vullen >>"}]
[null,null,null,null,"Type \nwerkzaamheden",null,null,{"$f":"VLOOKUP(H$14,Aanvraagformulier!$F$25:$N$37,5,FALSE)","v":"<<Maak een keuze>>"}]
[null,null,null,null,"Raming kosten\n (excl. BTW)",null,null,{"$f":"VLOOKUP(H$14,Aanvraagformulier!$F$25:$N$37,8,FALSE)","v":0}]
[null,null,null,null,"Raming kosten\n (incl. BTW)",null,null,{"$f":"VLOOKUP(H$14,Aanvraagformulier!$F$25:$N$37,9,FALSE)","v":0}]
[]
[null,null,false,null,null,null,null,"De raming van de kosten werd toegevoegd aan het dossier en opgenomen in de bijlage met referentie.",null,null,null,null,null,null,null,null,null,null,null,null,null,null,"Art. 7  Eerste Lid 2° (1)"]
[]
[]
[null,"1. Omschrijving werken",null,null,null,null,null,null,null,null,null,null,null,null,null,null,null,null,null,"Naam Bijlage (optioneel)","Pagina n°"]
[null,null,false]
[null,null,null,null,null,null,null,"Omschrijving werken"]
[null,null,null,null,null,null,null,null,null,null,null,null,null,null,null,null,null,null,null,null,null,null,"Art. 7  Eerste Lid 1° (1)"]
[]
[null,null,false,null,null,null,null,"Optioneel - u kunt een verduidelijkende bijlage toevoegen ter verduidelijking/vervanging van bovenstaand veld."]
[]
[null,"2. Locatie",null,null,null,null,null,null,null,null,null,null,null,null,null,null,null,null,null,"Naam Bijlage","Pagina n°"]
[]
[null,null,false,null,null,null,null,"Een kaart waarop de fysieke locatie van de schooltoegang en de zone van de werken aangeduid is, werd toegevoegd aan het dossier.",null,null,null,null,null,null,null,null,null,null,null,null,null,null,"Art. 1. 4° - art. 2 §1 1° (1) "]
[]
[]
[null,null,false,null,null,null,null,"De schoolomgeving (de zone waarin de werken voorzien zijn) bevindt zich:",null,null,null,null,null,null,null,null,null,null,null,null,null,null,"Art. 1. 4° - art. 2 §1 1° (1) "]
[]
[null,null,null,false,null,null,null,"i) Binnen een straal van 100 meter rond de schooltoegang."]
[]
[null,null,null,false,null,null,null,"ii) Of tot het eerste kruispunt aan weerzijden indien dat verder ligt dan 100 meter."]
[]
[]
[null,"3. Doel en aard"]
[]
[null,null,false,null,null,null,null,"Uitgaven zijn erop gericht de verkeersveiligheid van schoolkinderen te verbeteren. Selecteer (enkel) de relevante uitgave(n):",null,null,null,null,null,null,null,null,null,null,null,null,null,null,"Art. 2. §1 2° (1)"]
[]
[null,null,null,false,null,null,null,"i) Uitgaven voor verkeerssignalisatie.",null,null,null,null,null,null,null,null,null,null,null,null,null,null,"Art. 3 (1)"]
[null,null,null,null,null,null,null,"EN/OF",null,null,null,null,null,null,null,null,null,null,null,null,null,null,"Art. 3 (1)"]
[null,null,null,false,null,null,null,"ii) Uitgaven voor kleinere infrastructurele maatregelen die de verkeersveiligheid in de schoolomgeving verhogen."]
[]
[null,"4. Timing",null,null,null,null,null,null,null,null,null,null,null,null,null,null,null,null,null,"Naam Bijlage","Pagina n°"]
[]
[null,null,false,null,null,null,null,"De (geplande) werken worden uitgevoerd, rekening houdend met een voltooiingsdatum binnen de zes maanden na de dag van beslissing van toekenning. De finale stukken zullen ten laatste 60 dagen na voormelde datum ingediend moeten worden.",null,null,null,null,null,null,null,null,null,null,null,null,null,null,"Art. 2 §3 juncto art. 3 (1)"]
[]
[]
[null,null,null,null,null,null,null,"Voorziene datum aanvang van de werken",null,null,null,null,null,null,null,{"$f":"IF(OR(ISBLANK(L55),ISBLANK(L56)),\"Gelieve beide data in te vullen\",\"\")","v":"Gelieve beide data in te vullen"}]
[null,null,null,null,null,null,null,"Voorziene datum einde van de werken"]
[null,null,null,null,null,null,null,"Duurtijd (kalenderdagen)",null,null,null,{"$f":"IF(OR(ISBLANK(L55),ISBLANK(L56)),\"Gelieve bovenstaande cellen in te vullen\",_xlfn.DAYS(L56,L55))","v":"Gelieve bovenstaande cellen in te vullen"}]
[]
[null,null,null,null,null,null,null,"De werken worden uitgevoerd binnen 6 maanden na de dag van beslissing van toekenning. De finale stukken worden ten laatste 60 dagen na einddatum van de werken ingediend."]
[]
[]
[null,null,true,null,null,null,null,"De planning van de uitvoering van de werken voor de omgeving werd toegevoegd in bijlage met referentie.",null,null,null,null,null,null,null,null,null,null,null,null,null,null,"Art. 7  Eerste Lid 13 (1)"]
[null,null,true]
[null,"5. Informatie domeinbeheerder",null,null,null,null,null,null,null,null,null,null,null,null,null,null,null,null,null,"Naam Bijlage (optioneel)","Pagina n°","Compleet?"]
[]
[null,null,false,null,null,null,null,null,null,null,null,null,null,null,null,null,null,null,null,null,null,null,"Art. 7  Eerste Lid 1°-4° (1)"]
[]
[null,null,null,false]
[null,null,null,false]
[null,null,null,false]
[null,null,2,false,null,null,null,"Het domein waarop de werken worden uitgevoerd, is in het beheer van de gemeente."]
[]
[null,null,null,null,null,null,null,"Indien niet, vul aan:"]
[null,null,null,null,null,null,null,null,null,"Type",null,"Identiteit domeinbeheerder"]
[null,null,null,null,null,null,null,null,null,"Privaat"]
[]
[null,null,null,null,null,null,null,"Het akkoord van de deze domeinbeheerder werd als bijlage toegevoegd aan de dossieraanvraag.",null,null,null,null,null,null,null,null,null,null,null,null,null,null,"Art. 7  Eerste Lid 5° (1)"]
[]
[null,null,true]
[]
[]
[]
[]
[null,"Voor de administratie (MOW)",null,null,null,null,null,null,null,null,null,null,null,null,null,null,"Voor de aanvrager (Naam + Functie)"]
[null,null,null,null,null,null,null,null,null,null,null,"Hide Row"]

{"sheet":"Omgeving (8)","index":9,"n_rows":85,"n_cols":23,"rows_kept":85,"cut":false,"hidden":true,"merged":[[75,19,77,19],[75,20,77,20],[78,7,78,18],[69,7,69,18],[70,7,70,15],[73,9,73,10],[73,11,73,14],[74,9,74,10],[74,11,74,14],[68,7,68,18],[43,7,44,17],[45,7,45,18],[46,7,46,18],[47,7,47,18],[51,7,52,16],[54,11,54,14],[54,15,54,17],[55,11,55,14],[56,11,56,14],[58,7,59,16],[65,7,65,18],[67,7,67,18],[19,7,19,17],[24,7,24,18],[24,21,28,21],[27,7,28,17],[30,21,40,21],[31,7,32,17],[34,7,34,17],[36,7,36,18],[37,7,37,18],[38,7,38,18],[39,7,39,18],[11,4,11,16],[13,4,13,6],[13,7,13,16],[13,17,17,17],[14,4,14,6],[14,7,14,16],[15,4,15,6],[15,7,15,16],[16,4,16,6],[16,7,16,16],[17,4,17,6],[17,7,17,16],[7,1,7,18],[7,19,7,20],[1,9,5,19],[2,24,6,29],[5,7,5,8],[6,7,6,8],[6,15,6,16]]}
[]
[null,null,null,null,null,null,null,null,null,{"$f":"\"Individuele Detailfiche - Omgeving \" &H14&_xlfn.UNICHAR(10)& \"('\"&H15&\"')\"","v":"Individuele Detailfiche - Omgeving 8\n('<< Gelieve de naam van omgeving 8 in te vullen >>')"}]
[null,null,2]
[]
[]
[]
[]
[null,"Vul in onderstaande tabel de gevraagde gegevens in, vink alle verklaringen aan die op de aanvraag van toepassing zijn. Toepasselijke bijlages geeft u een (betekenisvolle naam) – vb. raming school ABC. Vermeld deze naam op de voorziene plaatsen in kolom T.  Indien één en dezelfde bijlage de info van meerdere items bundelt, leid ons dan in “kolom  U\" naar het passende paginanummer. Vergeet niet de bijlages samen met het aangevulde aanvraagformulier over te maken.",null,null,null,null,null,null,null,null,null,null,null,null,null,null,null,null,null,"Bijlagen",null,"Validatie \nMOW","Wettelijke \nverwijzing"]
[]
[]
[null,"0. Kostenoverzicht",null,null,null,null,null,null,null,null,null,null,null,null,null,null,null,null,null,"Naam Bijlage","Pagina n°","Evaluatie"]
[null,null,null,null,"Details per omgeving (Automatisch aangevuld op basis van overzicht)"]
[null,null,null,null,null,null,null,null,null,null,null,null,null,null,null,null,null,"link"]
[null,null,null,null,"Omgeving n°",null,null,8,null,null,null,null,null,null,null,null,null,{"$f":"HYPERLINK(\"#'Aanvraagformulier'!G28\",\"Klik hier\")","v":"Klik hier"}]
[null,null,null,null,"Naam omgeving",null,null,{"$f":"VLOOKUP(H$14,Aanvraagformulier!$F$25:$N$37,2,FALSE)","v":"<< Gelieve de naam van omgeving 8 in te vullen >>"}]
[null,null,null,null,"Type \nwerkzaamheden",null,null,{"$f":"VLOOKUP(H$14,Aanvraagformulier!$F$25:$N$37,5,FALSE)","v":"<<Maak een keuze>>"}]
[null,null,null,null,"Raming kosten\n (excl. BTW)",null,null,{"$f":"VLOOKUP(H$14,Aanvraagformulier!$F$25:$N$37,8,FALSE)","v":0}]
[null,null,null,null,"Raming kosten\n (incl. BTW)",null,null,{"$f":"VLOOKUP(H$14,Aanvraagformulier!$F$25:$N$37,9,FALSE)","v":0}]
[]
[null,null,false,null,null,null,null,"De raming van de kosten werd toegevoegd aan het dossier en opgenomen in de bijlage met referentie.",null,null,null,null,null,null,null,null,null,null,null,null,null,null,"Art. 7  Eerste Lid 2° (1)"]
[]
[]
[null,"1. Omschrijving werken",null,null,null,null,null,null,null,null,null,null,null,null,null,null,null,null,null,"Naam Bijlage (optioneel)","Pagina n°"]
[null,null,false]
[null,null,null,null,null,null,null,"Omschrijving werken"]
[null,null,null,null,null,null,null,null,null,null,null,null,null,null,null,null,null,null,null,null,null,null,"Art. 7  Eerste Lid 1° (1)"]
[]
[null,null,false,null,null,null,null,"Optioneel - u kunt een verduidelijkende bijlage toevoegen ter verduidelijking/vervanging van bovenstaand veld."]
[]
[null,"2. Locatie",null,null,null,null,null,null,null,null,null,null,null,null,null,null,null,null,null,"Naam Bijlage","Pagina n°"]
[]
[null,null,false,null,null,null,null,"Een kaart waarop de fysieke locatie van de schooltoegang en de zone van de werken aangeduid is, werd toegevoegd aan het dossier.",null,null,null,null,null,null,null,null,null,null,null,null,null,null,"Art. 1. 4° - art. 2 §1 1° (1) "]
[]
[]
[null,null,false,null,null,null,null,"De schoolomgeving (de zone waarin de werken voorzien zijn) bevindt zich:",null,null,null,null,null,null,null,null,null,null,null,null,null,null,"Art. 1. 4° - art. 2 §1 1° (1) "]
[]
[null,null,null,false,null,null,null,"i) Binnen een straal van 100 meter rond de schooltoegang."]
[]
[null,null,null,false,null,null,null,"ii) Of tot het eerste kruispunt aan weerzijden indien dat verder ligt dan 100 meter."]
[]
[]
[null,"3. Doel en aard"]
[]
[null,null,false,null,null,null,null,"Uitgaven zijn erop gericht de verkeersveiligheid van schoolkinderen te verbeteren. Selecteer (enkel) de relevante uitgave(n):",null,null,null,null,null,null,null,null,null,null,null,null,null,null,"Art. 2. §1 2° (1)"]
[]
[null,null,null,false,null,null,null,"i) Uitgaven voor verkeerssignalisatie.",null,null,null,null,null,null,null,null,null,null,null,null,null,null,"Art. 3 (1)"]
[null,null,null,null,null,null,null,"EN/OF",null,null,null,null,null,null,null,null,null,null,null,null,null,null,"Art. 3 (1)"]
[null,null,null,false,null,null,null,"ii) Uitgaven voor kleinere infrastructurele maatregelen die de verkeersveiligheid in de schoolomgeving verhogen."]
[]
[null,"4. Timing",null,null,null,null,null,null,null,null,null,null,null,null,null,null,null,null,null,"Naam Bijlage","Pagina n°"]
[]
[null,null,false,null,null,null,null,"De (geplande) werken worden uitgevoerd, rekening houdend met een voltooiingsdatum binnen de zes maanden na de dag van beslissing van toekenning. De finale stukken zullen ten laatste 60 dagen na voormelde datum ingediend moeten worden.",null,null,null,null,null,null,null,null,null,null,null,null,null,null,"Art. 2 §3 juncto art. 3 (1)"]
[]
[]
[null,null,null,null,null,null,null,"Voorziene datum aanvang van de werken",null,null,null,null,null,null,null,{"$f":"IF(OR(ISBLANK(L55),ISBLANK(L56)),\"Gelieve beide data in te vullen\",\"\")","v":"Gelieve beide data in te vullen"}]
[null,null,null,null,null,null,null,"Voorziene datum einde van de werken"]
[null,null,null,null,null,null,null,"Duurtijd (kalenderdagen)",null,null,null,{"$f":"IF(OR(ISBLANK(L55),ISBLANK(L56)),\"Gelieve bovenstaande cellen in te vullen\",_xlfn.DAYS(L56,L55))","v":"Gelieve bovenstaande cellen in te vullen"}]
[]
[null,null,null,null,null,null,null,"De werken worden uitgevoerd binnen 6 maanden na de dag van beslissing van toekenning. De finale stukken worden ten laatste 60 dagen na einddatum van de werken ingediend."]
[]
[]
[null,null,true,null,null,null,null,"De planning van de uitvoering van de werken voor de omgeving werd toegevoegd in bijlage met referentie.",null,null,null,null,null,null,null,null,null,null,null,null,null,null,"Art. 7  Eerste Lid 13 (1)"]
[null,null,true]
[null,"5. Informatie domeinbeheerder",null,null,null,null,null,null,null,null,null,null,null,null,null,null,null,null,null,"Naam Bijlage (optioneel)","Pagina n°","Compleet?"]
[]
[null,null,false,null,null,null,null,null,null,null,null,null,null,null,null,null,null,null,null,null,null,null,"Art. 7  Eerste Lid 1°-4° (1)"]
[]
[null,null,null,false]
[null,null,null,false]
[null,null,null,false]
[null,null,2,false,null,null,null,"Het domein waarop de werken worden uitgevoerd, is in het beheer van de gemeente."]
[]
[null,null,null,null,null,null,null,"Indien niet, vul aan:"]
[null,null,null,null,null,null,null,null,null,"Type",null,"Identiteit domeinbeheerder"]
[null,null,null,null,null,null,null,null,null,"Privaat"]
[]
[null,null,null,null,null,null,null,"Het akkoord van de deze domeinbeheerder werd als bijlage toegevoegd aan de dossieraanvraag.",null,null,null,null,null,null,null,null,null,null,null,null,null,null,"Art. 7  Eerste Lid 5° (1)"]
[]
[null,null,true]
[]
[]
[]
[]
[null,"Voor de administratie (MOW)",null,null,null,null,null,null,null,null,null,null,null,null,null,null,"Voor de aanvrager (Naam + Functie)"]
[null,null,null,null,null,null,null,null,null,null,null,"Hide Row"]

{"sheet":"Omgeving (9)","index":10,"n_rows":85,"n_cols":23,"rows_kept":85,"cut":false,"hidden":true,"merged":[[75,19,77,19],[75,20,77,20],[78,7,78,18],[69,7,69,18],[70,7,70,15],[73,9,73,10],[73,11,73,14],[74,9,74,10],[74,11,74,14],[68,7,68,18],[43,7,44,17],[45,7,45,18],[46,7,46,18],[47,7,47,18],[51,7,52,16],[54,11,54,14],[54,15,54,17],[55,11,55,14],[56,11,56,14],[58,7,59,16],[65,7,65,18],[67,7,67,18],[19,7,19,17],[24,7,24,18],[24,21,28,21],[27,7,28,17],[30,21,40,21],[31,7,32,17],[34,7,34,17],[36,7,36,18],[37,7,37,18],[38,7,38,18],[39,7,39,18],[11,4,11,16],[13,4,13,6],[13,7,13,16],[13,17,17,17],[14,4,14,6],[14,7,14,16],[15,4,15,6],[15,7,15,16],[16,4,16,6],[16,7,16,16],[17,4,17,6],[17,7,17,16],[7,1,7,18],[7,19,7,20],[1,9,5,19],[2,24,6,29],[5,7,5,8],[6,7,6,8],[6,15,6,16]]}
[]
[null,null,null,null,null,null,null,null,null,{"$f":"\"Individuele Detailfiche - Omgeving \" &H14&_xlfn.UNICHAR(10)& \"('\"&H15&\"')\"","v":"Individuele Detailfiche - Omgeving 9\n('<< Gelieve de naam van omgeving 9 in te vullen >>')"}]
[null,null,2]
[]
[]
[]
[]
[null,"Vul in onderstaande tabel de gevraagde gegevens in, vink alle verklaringen aan die op de aanvraag van toepassing zijn. Toepasselijke bijlages geeft u een (betekenisvolle naam) – vb. raming school ABC. Vermeld deze naam op de voorziene plaatsen in kolom T.  Indien één en dezelfde bijlage de info van meerdere items bundelt, leid ons dan in “kolom  U\" naar het passende paginanummer. Vergeet niet de bijlages samen met het aangevulde aanvraagformulier over te maken.",null,null,null,null,null,null,null,null,null,null,null,null,null,null,null,null,null,"Bijlagen",null,"Validatie \nMOW","Wettelijke \nverwijzing"]
[]
[]
[null,"0. Kostenoverzicht",null,null,null,null,null,null,null,null,null,null,null,null,null,null,null,null,null,"Naam Bijlage","Pagina n°","Evaluatie"]
[null,null,null,null,"Details per omgeving (Automatisch aangevuld op basis van overzicht)"]
[null,null,null,null,null,null,null,null,null,null,null,null,null,null,null,null,null,"link"]
[null,null,null,null,"Omgeving n°",null,null,9,null,null,null,null,null,null,null,null,null,{"$f":"HYPERLINK(\"#'Aanvraagformulier'!G28\",\"Klik hier\")","v":"Klik hier"}]
[null,null,null,null,"Naam omgeving",null,null,{"$f":"VLOOKUP(H$14,Aanvraagformulier!$F$25:$N$37,2,FALSE)","v":"<< Gelieve de naam van omgeving 9 in te vullen >>"}]
[null,null,null,null,"Type \nwerkzaamheden",null,null,{"$f":"VLOOKUP(H$14,Aanvraagformulier!$F$25:$N$37,5,FALSE)","v":"<<Maak een keuze>>"}]
[null,null,null,null,"Raming kosten\n (excl. BTW)",null,null,{"$f":"VLOOKUP(H$14,Aanvraagformulier!$F$25:$N$37,8,FALSE)","v":0}]
[null,null,null,null,"Raming kosten\n (incl. BTW)",null,null,{"$f":"VLOOKUP(H$14,Aanvraagformulier!$F$25:$N$37,9,FALSE)","v":0}]
[]
[null,null,false,null,null,null,null,"De raming van de kosten werd toegevoegd aan het dossier en opgenomen in de bijlage met referentie.",null,null,null,null,null,null,null,null,null,null,null,null,null,null,"Art. 7  Eerste Lid 2° (1)"]
[]
[]
[null,"1. Omschrijving werken",null,null,null,null,null,null,null,null,null,null,null,null,null,null,null,null,null,"Naam Bijlage (optioneel)","Pagina n°"]
[null,null,false]
[null,null,null,null,null,null,null,"Omschrijving werken"]
[null,null,null,null,null,null,null,null,null,null,null,null,null,null,null,null,null,null,null,null,null,null,"Art. 7  Eerste Lid 1° (1)"]
[]
[null,null,false,null,null,null,null,"Optioneel - u kunt een verduidelijkende bijlage toevoegen ter verduidelijking/vervanging van bovenstaand veld."]
[]
[null,"2. Locatie",null,null,null,null,null,null,null,null,null,null,null,null,null,null,null,null,null,"Naam Bijlage","Pagina n°"]
[]
[null,null,false,null,null,null,null,"Een kaart waarop de fysieke locatie van de schooltoegang en de zone van de werken aangeduid is, werd toegevoegd aan het dossier.",null,null,null,null,null,null,null,null,null,null,null,null,null,null,"Art. 1. 4° - art. 2 §1 1° (1) "]
[]
[]
[null,null,false,null,null,null,null,"De schoolomgeving (de zone waarin de werken voorzien zijn) bevindt zich:",null,null,null,null,null,null,null,null,null,null,null,null,null,null,"Art. 1. 4° - art. 2 §1 1° (1) "]
[]
[null,null,null,false,null,null,null,"i) Binnen een straal van 100 meter rond de schooltoegang."]
[]
[null,null,null,false,null,null,null,"ii) Of tot het eerste kruispunt aan weerzijden indien dat verder ligt dan 100 meter."]
[]
[]
[null,"3. Doel en aard"]
[]
[null,null,false,null,null,null,null,"Uitgaven zijn erop gericht de verkeersveiligheid van schoolkinderen te verbeteren. Selecteer (enkel) de relevante uitgave(n):",null,null,null,null,null,null,null,null,null,null,null,null,null,null,"Art. 2. §1 2° (1)"]
[]
[null,null,null,false,null,null,null,"i) Uitgaven voor verkeerssignalisatie.",null,null,null,null,null,null,null,null,null,null,null,null,null,null,"Art. 3 (1)"]
[null,null,null,null,null,null,null,"EN/OF",null,null,null,null,null,null,null,null,null,null,null,null,null,null,"Art. 3 (1)"]
[null,null,null,false,null,null,null,"ii) Uitgaven voor kleinere infrastructurele maatregelen die de verkeersveiligheid in de schoolomgeving verhogen."]
[]
[null,"4. Timing",null,null,null,null,null,null,null,null,null,null,null,null,null,null,null,null,null,"Naam Bijlage","Pagina n°"]
[]
[null,null,false,null,null,null,null,"De (geplande) werken worden uitgevoerd, rekening houdend met een voltooiingsdatum binnen de zes maanden na de dag van beslissing van toekenning. De finale stukken zullen ten laatste 60 dagen na voormelde datum ingediend moeten worden.",null,null,null,null,null,null,null,null,null,null,null,null,null,null,"Art. 2 §3 juncto art. 3 (1)"]
[]
[]
[null,null,null,null,null,null,null,"Voorziene datum aanvang van de werken",null,null,null,null,null,null,null,{"$f":"IF(OR(ISBLANK(L55),ISBLANK(L56)),\"Gelieve beide data in te vullen\",\"\")","v":"Gelieve beide data in te vullen"}]
[null,null,null,null,null,null,null,"Voorziene datum einde van de werken"]
[null,null,null,null,null,null,null,"Duurtijd (kalenderdagen)",null,null,null,{"$f":"IF(OR(ISBLANK(L55),ISBLANK(L56)),\"Gelieve bovenstaande cellen in te vullen\",_xlfn.DAYS(L56,L55))","v":"Gelieve bovenstaande cellen in te vullen"}]
[]
[null,null,null,null,null,null,null,"De werken worden uitgevoerd binnen 6 maanden na de dag van beslissing van toekenning. De finale stukken worden ten laatste 60 dagen na einddatum van de werken ingediend."]
[]
[]
[null,null,true,null,null,null,null,"De planning van de uitvoering van de werken voor de omgeving werd toegevoegd in bijlage met referentie.",null,null,null,null,null,null,null,null,null,null,null,null,null,null,"Art. 7  Eerste Lid 13 (1)"]
[null,null,true]
[null,"5. Informatie domeinbeheerder",null,null,null,null,null,null,null,null,null,null,null,null,null,null,null,null,null,"Naam Bijlage (optioneel)","Pagina n°","Compleet?"]
[]
[null,null,false,null,null,null,null,null,null,null,null,null,null,null,null,null,null,null,null,null,null,null,"Art. 7  Eerste Lid 1°-4° (1)"]
[]
[null,null,null,false]
[null,null,null,false]
[null,null,null,false]
[null,null,2,false,null,null,null,"Het domein waarop de werken worden uitgevoerd, is in het beheer van de gemeente."]
[]
[null,null,null,null,null,null,null,"Indien niet, vul aan:"]
[null,null,null,null,null,null,null,null,null,"Type",null,"Identiteit domeinbeheerder"]
[null,null,null,null,null,null,null,null,null,"Privaat"]
[]
[null,null,null,null,null,null,null,"Het akkoord van de deze domeinbeheerder werd als bijlage toegevoegd aan de dossieraanvraag.",null,null,null,null,null,null,null,null,null,null,null,null,null,null,"Art. 7  Eerste Lid 5° (1)"]
[]
[null,null,true]
[]
[]
[]
[]
[null,"Voor de administratie (MOW)",null,null,null,null,null,null,null,null,null,null,null,null,null,null,"Voor de aanvrager (Naam + Functie)"]
[null,null,null,null,null,null,null,null,null,null,null,"Hide Row"]

{"sheet":"Omgeving (10)","index":11,"n_rows":85,"n_cols":23,"rows_kept":85,"cut":false,"hidden":true,"merged":[[75,19,77,19],[75,20,77,20],[78,7,78,18],[69,7,69,18],[70,7,70,15],[73,9,73,10],[73,11,73,14],[74,9,74,10],[74,11,74,14],[68,7,68,18],[43,7,44,17],[45,7,45,18],[46,7,46,18],[47,7,47,18],[51,7,52,16],[54,11,54,14],[54,15,54,17],[55,11,55,14],[56,11,56,14],[58,7,59,16],[65,7,65,18],[67,7,67,18],[19,7,19,17],[24,7,24,18],[24,21,28,21],[27,7,28,17],[30,21,40,21],[31,7,32,17],[34,7,34,17],[36,7,36,18],[37,7,37,18],[38,7,38,18],[39,7,39,18],[11,4,11,16],[13,4,13,6],[13,7,13,16],[13,17,17,17],[14,4,14,6],[14,7,14,16],[15,4,15,6],[15,7,15,16],[16,4,16,6],[16,7,16,16],[17,4,17,6],[17,7,17,16],[7,1,7,18],[7,19,7,20],[1,9,5,19],[2,24,6,29],[5,7,5,8],[6,7,6,8],[6,15,6,16]]}
[]
[null,null,null,null,null,null,null,null,null,{"$f":"\"Individuele Detailfiche - Omgeving \" &H14&_xlfn.UNICHAR(10)& \"('\"&H15&\"')\"","v":"Individuele Detailfiche - Omgeving 10\n('<< Gelieve de naam van omgeving 10 in te vullen >>')"}]
[null,null,2]
[]
[]
[]
[]
[null,"Vul in onderstaande tabel de gevraagde gegevens in, vink alle verklaringen aan die op de aanvraag van toepassing zijn. Toepasselijke bijlages geeft u een (betekenisvolle naam) – vb. raming school ABC. Vermeld deze naam op de voorziene plaatsen in kolom T.  Indien één en dezelfde bijlage de info van meerdere items bundelt, leid ons dan in “kolom  U\" naar het passende paginanummer. Vergeet niet de bijlages samen met het aangevulde aanvraagformulier over te maken.",null,null,null,null,null,null,null,null,null,null,null,null,null,null,null,null,null,"Bijlagen",null,"Validatie \nMOW","Wettelijke \nverwijzing"]
[]
[]
[null,"0. Kostenoverzicht",null,null,null,null,null,null,null,null,null,null,null,null,null,null,null,null,null,"Naam Bijlage","Pagina n°","Evaluatie"]
[null,null,null,null,"Details per omgeving (Automatisch aangevuld op basis van overzicht)"]
[null,null,null,null,null,null,null,null,null,null,null,null,null,null,null,null,null,"link"]
[null,null,null,null,"Omgeving n°",null,null,10,null,null,null,null,null,null,null,null,null,{"$f":"HYPERLINK(\"#'Aanvraagformulier'!G28\",\"Klik hier\")","v":"Klik hier"}]
[null,null,null,null,"Naam omgeving",null,null,{"$f":"VLOOKUP(H$14,Aanvraagformulier!$F$25:$N$37,2,FALSE)","v":"<< Gelieve de naam van omgeving 10 in te vullen >>"}]
[null,null,null,null,"Type \nwerkzaamheden",null,null,{"$f":"VLOOKUP(H$14,Aanvraagformulier!$F$25:$N$37,5,FALSE)","v":"<<Maak een keuze>>"}]
[null,null,null,null,"Raming kosten\n (excl. BTW)",null,null,{"$f":"VLOOKUP(H$14,Aanvraagformulier!$F$25:$N$37,8,FALSE)","v":0}]
[null,null,null,null,"Raming kosten\n (incl. BTW)",null,null,{"$f":"VLOOKUP(H$14,Aanvraagformulier!$F$25:$N$37,9,FALSE)","v":0}]
[]
[null,null,false,null,null,null,null,"De raming van de kosten werd toegevoegd aan het dossier en opgenomen in de bijlage met referentie.",null,null,null,null,null,null,null,null,null,null,null,null,null,null,"Art. 7  Eerste Lid 2° (1)"]
[]
[]
[null,"1. Omschrijving werken",null,null,null,null,null,null,null,null,null,null,null,null,null,null,null,null,null,"Naam Bijlage (optioneel)","Pagina n°"]
[null,null,false]
[null,null,null,null,null,null,null,"Omschrijving werken"]
[null,null,null,null,null,null,null,null,null,null,null,null,null,null,null,null,null,null,null,null,null,null,"Art. 7  Eerste Lid 1° (1)"]
[]
[null,null,false,null,null,null,null,"Optioneel - u kunt een verduidelijkende bijlage toevoegen ter verduidelijking/vervanging van bovenstaand veld."]
[]
[null,"2. Locatie",null,null,null,null,null,null,null,null,null,null,null,null,null,null,null,null,null,"Naam Bijlage","Pagina n°"]
[]
[null,null,false,null,null,null,null,"Een kaart waarop de fysieke locatie van de schooltoegang en de zone van de werken aangeduid is, werd toegevoegd aan het dossier.",null,null,null,null,null,null,null,null,null,null,null,null,null,null,"Art. 1. 4° - art. 2 §1 1° (1) "]
[]
[]
[null,null,false,null,null,null,null,"De schoolomgeving (de zone waarin de werken voorzien zijn) bevindt zich:",null,null,null,null,null,null,null,null,null,null,null,null,null,null,"Art. 1. 4° - art. 2 §1 1° (1) "]
[]
[null,null,null,false,null,null,null,"i) Binnen een straal van 100 meter rond de schooltoegang."]
[]
[null,null,null,false,null,null,null,"ii) Of tot het eerste kruispunt aan weerzijden indien dat verder ligt dan 100 meter."]
[]
[]
[null,"3. Doel en aard"]
[]
[null,null,false,null,null,null,null,"Uitgaven zijn erop gericht de verkeersveiligheid van schoolkinderen te verbeteren. Selecteer (enkel) de relevante uitgave(n):",null,null,null,null,null,null,null,null,null,null,null,null,null,null,"Art. 2. §1 2° (1)"]
[]
[null,null,null,false,null,null,null,"i) Uitgaven voor verkeerssignalisatie.",null,null,null,null,null,null,null,null,null,null,null,null,null,null,"Art. 3 (1)"]
[null,null,null,null,null,null,null,"EN/OF",null,null,null,null,null,null,null,null,null,null,null,null,null,null,"Art. 3 (1)"]
[null,null,null,false,null,null,null,"ii) Uitgaven voor kleinere infrastructurele maatregelen die de verkeersveiligheid in de schoolomgeving verhogen."]
[]
[null,"4. Timing",null,null,null,null,null,null,null,null,null,null,null,null,null,null,null,null,null,"Naam Bijlage","Pagina n°"]
[]
[null,null,false,null,null,null,null,"De (geplande) werken worden uitgevoerd, rekening houdend met een voltooiingsdatum binnen de zes maanden na de dag van beslissing van toekenning. De finale stukken zullen ten laatste 60 dagen na voormelde datum ingediend moeten worden.",null,null,null,null,null,null,null,null,null,null,null,null,null,null,"Art. 2 §3 juncto art. 3 (1)"]
[]
[]
[null,null,null,null,null,null,null,"Voorziene datum aanvang van de werken",null,null,null,null,null,null,null,{"$f":"IF(OR(ISBLANK(L55),ISBLANK(L56)),\"Gelieve beide data in te vullen\",\"\")","v":"Gelieve beide data in te vullen"}]
[null,null,null,null,null,null,null,"Voorziene datum einde van de werken"]
[null,null,null,null,null,null,null,"Duurtijd (kalenderdagen)",null,null,null,{"$f":"IF(OR(ISBLANK(L55),ISBLANK(L56)),\"Gelieve bovenstaande cellen in te vullen\",_xlfn.DAYS(L56,L55))","v":"Gelieve bovenstaande cellen in te vullen"}]
[]
[null,null,null,null,null,null,null,"De werken worden uitgevoerd binnen 6 maanden na de dag van beslissing van toekenning. De finale stukken worden ten laatste 60 dagen na einddatum van de werken ingediend."]
[]
[]
[null,null,true,null,null,null,null,"De planning van de uitvoering van de werken voor de omgeving werd toegevoegd in bijlage met referentie.",null,null,null,null,null,null,null,null,null,null,null,null,null,null,"Art. 7  Eerste Lid 13 (1)"]
[null,null,true]
[null,"5. Informatie domeinbeheerder",null,null,null,null,null,null,null,null,null,null,null,null,null,null,null,null,null,"Naam Bijlage (optioneel)","Pagina n°","Compleet?"]
[]
[null,null,false,null,null,null,null,null,null,null,null,null,null,null,null,null,null,null,null,null,null,null,"Art. 7  Eerste Lid 1°-4° (1)"]
[]
[null,null,null,false]
[null,null,null,false]
[null,null,null,false]
[null,null,2,false,null,null,null,"Het domein waarop de werken worden uitgevoerd, is in het beheer van de gemeente."]
[]
[null,null,null,null,null,null,null,"Indien niet, vul aan:"]
[null,null,null,null,null,null,null,null,null,"Type",null,"Identiteit domeinbeheerder"]
[null,null,null,null,null,null,null,null,null,"Privaat"]
[]
[null,null,null,null,null,null,null,"Het akkoord van de deze domeinbeheerder werd als bijlage toegevoegd aan de dossieraanvraag.",null,null,null,null,null,null,null,null,null,null,null,null,null,null,"Art. 7  Eerste Lid 5° (1)"]
[]
[null,null,true]
[]
[]
[]
[]
[null,"Voor de administratie (MOW)",null,null,null,null,null,null,null,null,null,null,null,null,null,null,"Voor de aanvrager (Naam + Functie)"]
[null,null,null,null,null,null,null,null,null,null,null,"Hide Row"]